Cogmind - Beta 16.1 @@@ ROGUE MODE // 2026.01.22 @ 15:47:17 Player: cptwinky Result: Escaped! Performance ------------- Evolutions (9) 4500 Regions Visited (34) 6800 Robots Destroyed (153) 765 Value Destroyed (6132) 6132 Prototype IDs (98) 1960 Alien Tech Used (2) 400 Bonus (21635) 21635 TOTAL SCORE: 42192 Bonus ------- Triggered Max Security 1000 High Alert Combat Kills 1357 Follower Combat Kills 11683 Entered Garrisons 800 Used RIF Installer 2500 Entered DSFs 500 Aligned with FarCom 300 Met Data Miner 300 Met Zhirov 300 Win 3000 Friendly Fire -105 Cogmind --------- Core Integrity 1432/1600 Matter 331/800 Energy 514/520 System Corruption 8% Temperature Cool (-200) Movement Rolling (100) Ox1 Location To Epsilon Eridani Parts ------- > --- POWER (3) -------- Particle Reactor Light Quantum Reactor Light Quantum Reactor > --- PROPULSION (6) --- Centrium Wheel Centrium Wheel Centrium Wheel Centrium Wheel Centrium Wheel Centrium Wheel > --- UTILITY (11) ----- Advanced Cryofiber Web Advanced Cooling System High-capacity Storage Unit Experimental Matter Compressor Advanced Targeting Computer Experimental Core Analyzer Centrium Heavy Armor Plating Light Regenerative Plating Long-range Tractor Beam Improved Field Recycling Unit (fused) > --- WEAPON (5) ------- 1B-0RG's Assimilator > --- INVENTORY (20) --- Particle Reactor Advanced Energy Well (500) Experimental Matter Compressor (0) Triangulator Transdimensional Reconstructor Enhanced Nova Cannon XL Autogun Subcomponent XL Autogun Subcomponent XL Autogun Subcomponent Advanced Remote Datajack Ripper Peak State ------------ > --- POWER ------------ Reinforced Fission Core Quantum Reactor Light Quantum Reactor > --- PROPULSION ------- Improved Heavy Siege Treads Centrium Wheel Centrium Wheel Centrium Wheel Centrium Wheel > --- UTILITY ---------- Advanced Cooling System High-capacity Storage Unit Advanced Energy Well Experimental Matter Compressor Advanced Targeting Computer Experimental Target Analyzer Experimental Core Analyzer Centrium Heavy Armor Plating Light Regenerative Plating Advanced Hacking Suite > --- WEAPON ----------- 1B-0RG's Assimilator > --- INVENTORY -------- Particle Reactor Centrium Wheel Centrium Wheel Experimental Matter Compressor Experimental Matter Compressor Triangulator Advanced Force Field Long-range Tractor Beam Improved Field Recycling Unit Transdimensional Reconstructor Compact HERF Cannon Cooled Plasma Cannon Enhanced Nova Cannon XL Autogun Array Heavy Rocket Launcher Advanced Remote Datajack Ripper [Rating: 224] Favorites ----------- Power Light Quantum Reactor Engine Improved Deuterium Engine Power Core Neutrino Core Reactor Light Quantum Reactor Propulsion Wheel Treads Light Treads Leg Multireflex Exoskeleton Wheel Wheel Utility High-capacity Storage Unit Device IFF Parser Storage High-capacity Storage Unit Processor Core Analyzer Hackware Advanced Hacking Suite Protection Centrium Heavy Armor Plating Weapon 1B-0RG's Assimilator Energy Gun Heavy Particle Gun Energy Cannon Enhanced Nova Cannon Ballistic Gun XL Autogun Array Ballistic Cannon Light Cannon Launcher Heavy Rocket Launcher Special Weapon Plasma Cutter Impact Weapon Maul Slashing Weapon Ripper Special Melee Weapon 1B-0RG's Assimilator Build | -11 -10 -10 -10 -9 -8 -8 -8 -8 -7 -7 -7 -7 -6 -6 -6 -6 -6 -6 -6 -5 -5 -5 -5 -4 -4 -4 -4 -3 -3 -3 -3 -2 -2 -1 ------- Run | Yrd Mat Min Exi Min Mat Gar Mat Gar Fac Low Low Dat Pro Fac Gar Fac Low Low Zio Pro Fac Upp Upp Fac Upp Upp Zhi Pro Res Gar Qua Res DSF Acc Slots Evolved 18 | . . . . . 4 . . . 2 . . . . 2 . . . . . . 2 . . 2 . . . . 2 . . 2 . 2 Power 2 | . . . . . . . . . . . . . . . . . . . . . 1 . . . . . . . . . . 1 . . Propulsion 4 | . . . . . 1 . . . . . . . . 1 . . . . . . . . . . . . . . . . . . . 2 Utility 9 | . . . . . 2 . . . . . . . . 1 . . . . . . 1 . . 2 . . . . 2 . . 1 . . Weapon 3 | . . . . . 1 . . . 2 . . . . . . . . . . . . . . . . . . . . . . . . . Parts Attached 167 | 6 17 . 1 3 10 5 4 7 3 . 3 . 1 12 2 3 1 2 1 4 2 4 2 10 1 . 7 6 17 5 . 3 6 19 Power 23 | 1 1 . 1 . . . . 2 1 . . . 1 . 1 . . 1 . . 1 1 . 2 . . 1 1 1 1 . 1 . 5 Engine 6 | 1 1 . . . . . . 1 1 . . . 1 . 1 . . . . . . . . . . . . . . . . . . . Core 5 | . . . 1 . . . . 1 . . . . . . . . . . . . 1 . . 1 . . . 1 . . . . . . Reactor 12 | . . . . . . . . . . . . . . . . . . 1 . . . 1 . 1 . . 1 . 1 1 . 1 . 5 Propulsion 50 | 2 2 . . 1 4 3 2 1 . . 1 . . 7 1 2 . . . 1 . . 1 6 . . 2 2 2 . . 1 6 3 Treads 19 | 2 2 . . 1 4 3 1 . . . . . . 2 . . . . . . . . 1 2 . . . . . . . . . 1 Leg 2 | . . . . . . . . . . . . . . 2 . . . . . . . . . . . . . . . . . . . . Wheel 29 | . . . . . . . 1 1 . . 1 . . 3 1 2 . . . 1 . . . 4 . . 2 2 2 . . 1 6 2 Hover . | . . . . . . . . . . . . . . . . . . . . . . . . . . . . . . . . . . . Flight . | . . . . . . . . . . . . . . . . . . . . . . . . . . . . . . . . . . . Utility 59 | 1 5 . . 1 2 . 2 2 . . 1 . . 4 . 1 . 1 . 3 1 2 1 2 1 . 3 3 12 4 . 1 . 6 Device 16 | . . . . . 1 . . 1 . . . . . 1 . 1 . . . 1 . 1 . 2 1 . 1 . 2 2 . . . 2 Storage 12 | 1 2 . . . . . . . . . 1 . . . . . . 1 . . . 1 . . . . 1 1 1 2 . . . 1 Processor 9 | . . . . . 1 . 1 . . . . . . . . . . . . . 1 . . . . . . 1 4 . . 1 . . Hackware 5 | . . . . . . . . . . . . . . . . . . . . . . . . . . . . . 3 . . . . 2 Protection 17 | . 3 . . 1 . . 1 1 . . . . . 3 . . . . . 2 . . 1 . . . 1 1 2 . . . . 1 Artifact . | . . . . . . . . . . . . . . . . . . . . . . . . . . . . . . . . . . . Weapon 35 | 2 9 . . 1 4 2 . 2 2 . 1 . . 1 . . 1 . 1 . . 1 . . . . 1 . 2 . . . . 5 Energy Gun 8 | 2 1 . . . 3 1 . 1 . . . . . . . . . . . . . . . . . . . . . . . . . . Energy Cannon 2 | . . . . . . . . . . . . . . . . . . . . . . 1 . . . . . . . . . . . 1 Ballistic Gun 7 | . . . . . 1 . . . . . . . . 1 . . . . . . . . . . . . . . 1 . . . . 4 Ballistic Cannon 7 | . 6 . . 1 . . . . . . . . . . . . . . . . . . . . . . . . . . . . . . Launcher 3 | . . . . . . 1 . . 1 . . . . . . . 1 . . . . . . . . . . . . . . . . . Special Weapon 3 | . . . . . . . . 1 . . . . . . . . . . . . . . . . . . 1 . 1 . . . . . Impact Weapon 1 | . 1 . . . . . . . . . . . . . . . . . . . . . . . . . . . . . . . . . Slashing Weapon 1 | . . . . . . . . . . . 1 . . . . . . . . . . . . . . . . . . . . . . . Piercing Weapon . | . . . . . . . . . . . . . . . . . . . . . . . . . . . . . . . . . . . Special Melee Weapon 3 | . 1 . . . . . . . 1 . . . . . . . . . 1 . . . . . . . . . . . . . . . Unidentified Prototypes 13 | . . . . . 1 . . . 1 . . . 1 1 . . . . . . . . . . . . 4 . 4 . . . . 1 Parts Lost 30 | . . . . . . . . 1 . . . . . 3 1 1 . . . 1 . . 1 7 . . . . 7 . 1 . 1 6 Power 4 | . . . . . . . . 1 . . . . . . . . . . . . . . . 1 . . . . . . . . . 2 Propulsion 16 | . . . . . . . . . . . . . . 3 1 1 . . . . . . 1 5 . . . . 2 . 1 . 1 1 Utility 9 | . . . . . . . . . . . . . . . . . . . . 1 . . . 1 . . . . 5 . . . . 2 Weapon 1 | . . . . . . . . . . . . . . . . . . . . . . . . . . . . . . . . . . 1 Highest Loss Streak 7 | . . . . . . . . 1 . . . . . 2 1 1 . . . 1 . . 1 2 . . . . 7 . 1 . 1 3 To Critical Strikes . | . . . . . . . . . . . . . . . . . . . . . . . . . . . . . . . . . . . Average Backups 14 | 3 8 15 13 12 11 12 11 10 9 9 10 14 14 13 13 16 16 17 17 16 16 16 16 16 15 16 16 16 15 14 14 15 16 13 Power . | . 1 1 . . . . . . . . . . . . 1 2 2 1 1 1 1 1 1 . . 1 1 . 1 1 1 1 . . Propulsion . | 1 1 1 1 1 1 1 . 1 1 . 1 1 1 . . . . . 1 . . . . . . 1 2 . . . . . . 1 Utility 6 | . 2 6 5 3 3 3 3 3 4 4 4 7 7 6 5 6 7 8 8 8 8 7 8 8 7 7 7 7 7 7 7 6 7 5 Weapon 5 | . 2 6 6 6 6 5 5 4 3 4 4 5 4 4 5 6 6 6 6 6 5 6 6 6 6 5 5 5 4 4 4 5 6 4 Tool/Special . | . . . . . . . . . . . . . . . . . . . . . . . . . . . . . . . . . . . Unused Backups 33 | . 7 1 3 2 2 . . . 1 . . . . 2 1 1 1 . . . . . 1 . . . 1 1 2 . . 1 . 6 Power 4 | . . . . . . . . . . . . . . 1 1 . . . . . . . . . . . . 1 . . . . . 1 Propulsion 3 | . 2 . . . . . . . . . . . . . . . . . . . . . . . . . 1 . . . . . . . Utility 7 | . . . 2 2 . . . . 1 . . . . . . . . . . . . . . . . . . . 1 . . . . 1 Weapon 16 | . 5 1 1 . 2 . . . . . . . . 1 . 1 1 . . . . . 1 . . . . . . . . 1 . 2 Tool/Special 3 | . . . . . . . . . . . . . . . . . . . . . . . . . . . . . 1 . . . . 2 Average Slot Usage (%) 74 | . 98 100 100 100 93 100 91 88 53 53 53 50 52 54 66 65 66 66 66 70 66 74 75 66 75 78 74 73 72 76 75 74 77 75 Engine 3 | . 13 14 8 . . . . 5 7 7 7 7 7 6 6 6 6 3 . . . . . . . . . . . . . . . . Core 2 | . . . 5 14 9 9 9 2 . . . . . . . . . . . . 2 5 5 4 5 5 3 2 4 4 4 4 4 1 Reactor 3 | . . . . . . . . . . . . . . . . . . 2 6 6 5 5 5 4 5 5 6 7 4 4 4 7 8 9 Treads 9 | . 28 28 28 28 27 27 12 9 7 7 2 . . 3 6 6 6 6 6 6 5 5 9 6 10 10 10 8 4 4 4 4 1 3 Wheel 11 | . . . . . . . 7 9 7 7 12 15 15 8 20 19 20 20 20 20 17 17 12 11 10 10 10 11 13 14 13 12 15 17 Device 7 | . . . . . 7 9 9 8 . . . . . 1 6 6 6 5 6 6 5 9 7 11 22 26 24 20 13 9 9 8 9 10 Storage 7 | . 14 14 14 14 9 9 9 9 7 7 7 7 7 6 6 6 6 6 6 6 5 5 8 5 5 5 5 5 4 8 9 8 8 5 Processor 6 | . . . . . 5 9 8 9 7 7 7 7 7 6 6 6 6 6 6 6 5 5 5 5 5 5 5 5 9 9 9 10 13 9 Hackware 1 | . . . . . . . . . . . . . . . . . . . . . . . . . . . . . 5 4 4 4 4 5 Protection 8 | . 13 14 14 14 9 9 9 8 7 7 6 7 6 10 6 6 6 6 6 10 11 11 10 9 5 5 5 5 5 8 9 8 6 7 Energy Gun 2 | . 4 . . . 21 26 27 25 . . . . . . . . . . . . . . . . . . . . . . . . . . Ballistic Cannon 2 | . 22 27 19 28 3 . . 1 . . . . . . . . . . . . . . . . . . . . . . . . . . Special Melee Weapon 4 | . . . 8 . . . . . 6 7 6 4 6 5 5 5 6 6 6 6 4 4 4 4 5 4 1 5 3 2 3 4 3 3 Peak Build Rating 224 | 6 10 11 15 22 34 34 44 46 100 100 100 99 101 114 108 108 108 112 112 112 119 120 123 128 138 138 142 142 159 176 173 186 202 224 Average Rating 108 | 5 8 10 12 17 31 33 42 42 98 99 93 54 98 102 104 106 107 108 111 109 109 117 120 120 135 135 79 136 141 161 170 182 184 206 On Entrance 97 | . 6 10 11 15 22 34 34 44 44 100 100 99 99 101 106 108 108 107 112 112 108 114 119 123 128 138 138 142 133 159 173 172 186 202 Avg Prop Armor Cover (%) 6 | . . . . . . . 9 8 6 6 6 . . 3 4 4 4 4 4 5 6 6 9 7 14 14 17 8 4 4 4 4 4 7 Naked Turns . | . . . . . . . . . . . . . . . . . . . . . . . . . . . . . . . . . . . Heaviest Build 203 | 11 36 36 36 44 48 43 42 62 105 105 125 125 125 136 121 121 132 126 126 126 139 144 144 146 149 146 139 158 156 184 174 194 202 203 Greatest Support 96 | 40 40 40 40 40 60 60 60 28 28 28 38 38 38 38 30 30 30 30 30 30 30 30 30 30 20 20 20 34 34 32 32 38 64 96 Greatest Overweight (x) 13 | . . . . 1 . . 1 2 3 3 3 3 3 13 4 6 4 4 4 4 4 4 7 7 7 7 6 7 9 5 7 7 7 3 Average Overweight (x) 3 | . . . . . . . . 1 2 2 2 1 2 4 3 4 3 4 4 4 4 4 5 5 6 6 4 5 4 4 5 5 4 2 Largest Inventory Capacity 20 | 8 15 15 15 15 15 15 15 15 15 15 20 20 20 20 20 20 20 20 20 20 20 20 20 20 20 20 20 20 20 20 20 20 20 20 Average Capacity 18 | 7 9 15 15 15 15 15 15 15 15 15 15 20 20 20 20 20 20 20 20 20 20 20 20 20 20 20 20 20 20 20 20 20 20 20 Most Carried 20 | 6 15 15 15 15 15 15 15 15 15 15 20 20 20 20 20 20 20 20 20 20 20 20 20 20 20 20 20 20 20 20 19 20 20 20 Average Carried 17 | 3 8 14 14 14 14 15 14 14 14 14 15 19 19 18 16 19 19 19 19 19 19 19 19 19 18 19 19 19 19 19 18 19 19 16 Final Capacity 20 | 8 15 15 15 15 15 15 15 15 15 15 20 20 20 20 20 20 20 20 20 20 20 20 20 20 20 20 20 20 20 20 20 20 20 20 Final Carried 20 | 6 15 15 15 15 15 15 15 15 15 15 20 19 20 16 20 20 20 20 20 20 19 20 20 19 18 20 20 20 20 19 19 20 20 11 Class Distribution -------------------- 44% | Mutant 37% | Scavenger-Mutant 5% | Scavenger-Skirmisher 3% | Skirmisher Dominant Class ---------------- Mutant | -10/Materials Mutant | -10/Mines Mutant | -10/Exiles Mutant | -9/Mines Scavenger-Skirmisher | -8/Materials Scavenger-Skirmisher | -8/Garrison Skirmisher | -8/Materials Skirmisher | -8/Garrison Mutant | -7/Factory Mutant | -7/Lower Caves Mutant | -7/Lower Caves Mutant | -7/Data Miner Mutant | -6/Proximity Caves Mutant | -6/Factory Scavenger-Mutant | -6/Garrison Scavenger-Mutant | -6/Factory Mutant | -6/Lower Caves Mutant | -6/Lower Caves Mutant | -6/Zion Mutant | -5/Proximity Caves Scavenger-Mutant | -5/Factory Scavenger-Mutant | -5/Upper Caves Scavenger-Mutant | -5/Upper Caves Scavenger-Mutant | -4/Factory Scavenger-Mutant | -4/Upper Caves Scavenger-Mutant | -4/Upper Caves Scavenger-Mutant | -4/Zhirov Scavenger-Mutant | -3/Proximity Caves Scavenger-Mutant | -3/Research Scavenger-Mutant | -3/Garrison Scavenger-Mutant | -3/Quarantine Scavenger-Mutant | -2/Research Scavenger-Mutant | -2/DSF Mutant | -1/Access Resources | -11 -10 -10 -10 -9 -8 -8 -8 -8 -7 -7 -7 -7 -6 -6 -6 -6 -6 -6 -6 -5 -5 -5 -5 -4 -4 -4 -4 -3 -3 -3 -3 -2 -2 -1 ----------- Run | Yrd Mat Min Exi Min Mat Gar Mat Gar Fac Low Low Dat Pro Fac Gar Fac Low Low Zio Pro Fac Upp Upp Fac Upp Upp Zhi Pro Res Gar Qua Res DSF Acc Matter Collected 34107 | 260 513 . 30 37 162 146 40 340 715 802 519 . 732 893 1158 613 419 614 . 524 43 1120 1551 1593 357 1215 242 1455 2781 3621 17 799 1161 9635 Remotely 1116 | . . . . . . . . . . . . . . . . . . . . . . . . . . . . . . . . . . 1116 Salvage Created 6225 | 60 546 15 . . 177 559 51 805 . . 40 . 36 96 177 53 . 14 . . . . 60 . . 253 242 . 985 1134 . . 164 758 Parts 326 | 8 34 3 . . 10 39 2 47 . . . . 2 10 18 6 . 1 . . . . 6 . . 6 6 . 52 41 . . 3 32 Haulers Intercepted 5 | . 2 . . . 2 . . . . . . . . . . . . . . . . . . . . . . . 1 . . . . . Recyclers Shooed 4 | . 1 . . 1 . . . . . . . . . . . 1 . . . . . . . . . . . . . . . . . 1 Parts Field Recycled 254 | . . . . . . . . 8 . . 3 . . 15 . . 4 . . . . . 3 . 5 5 7 10 . 50 . . 31 113 Retrieved Matter 4554 | . . . . . . . . 230 . . 20 . . 156 . . 86 . . . . . 100 . 82 97 41 55 . 926 . . 502 2259 Parts Self-Destructed 189 | . . . . . . . . . . 25 3 . 13 . . . 10 17 . 21 . 11 30 . . 21 1 37 . . . . . . Prevented 1 | . . . . . . . . . . . . . . . . . . . . . . . . . . . . 1 . . . . . . Parts Restored . | . . . . . . . . . . . . . . . . . . . . . . . . . . . . . . . . . . . Kills | -11 -10 -10 -10 -9 -8 -8 -8 -8 -7 -7 -7 -7 -6 -6 -6 -6 -6 -6 -6 -5 -5 -5 -5 -4 -4 -4 -4 -3 -3 -3 -3 -2 -2 -1 ------- Run | Yrd Mat Min Exi Min Mat Gar Mat Gar Fac Low Low Dat Pro Fac Gar Fac Low Low Zio Pro Fac Upp Upp Fac Upp Upp Zhi Pro Res Gar Qua Res DSF Acc Combat Hostiles Destroyed 126 | . 16 . . . 2 17 1 24 . . . . 3 . 12 . . 1 . . . . 3 . . . . . 16 15 . . 5 11 Guns 57 | . 5 . . . 1 10 1 10 . . . . . . . . . . . . . . . . . . . . 12 7 . . 1 10 Cannons 21 | . 11 . . . 1 . . 5 . . . . . . . . . . . . . . 3 . . . . . . . . . . 1 AOE 48 | . . . . . . 7 . 9 . . . . 3 . 12 . . 1 . . . . . . . . . . 4 8 . . 4 . Classes Destroyed 16 | 1 5 . . . 2 1 . 1 . . . . . 1 . 1 . . . . . . . . . . . . 3 . . . 1 . Worker 8 | . 1 . . . . . . . . . . . . 4 . 1 . . . . . . . . . . . . 1 . . . . 1 Builder 4 | . . . . . . . . . . . . . . 1 . . . . . . . . . . . . . . 1 . . . . 2 Tunneler 4 | 3 . 1 . . . . . . . . . . . . . . . . . . . . . . . . . . . . . . . . Hauler 5 | . 2 . . . 2 . . . . . . . . . . . . . . . . . . . . . . . 1 . . . . . Recycler 2 | . 1 . . . . . . . . . . . . . . . . . . . . . . . . . . . . . . . . 1 Mechanic 1 | . . . . . . . . . . . . . . . . 1 . . . . . . . . . . . . . . . . . . Watcher 1 | . . . . . . 1 . . . . . . . . . . . . . . . . . . . . . . . . . . . . Swarmer 62 | . 8 . . . . 7 . 8 . . . . 3 . 10 . . 1 . . . . 3 . . . . . 4 10 . . 4 4 Grunt 30 | . 8 . . . . 6 . 4 . . . . . . 2 1 . . . . . . . . . . . . 4 2 . . . 3 Protector 1 | . . . . . . . . . . . . . . . . . . . . . . . . . . . . . 1 . . . . . Sentry 16 | . . . . . 1 3 1 9 . . . . . . . . . . . . . . . . . . . . 1 1 . . . . Specialist 1 | . . . . . . . . . . . . . . . . . . . . . . . . . . . . . 1 . . . . . Hunter 6 | . . . . . 1 1 . . . . 1 . . . . . . . . . . . . . . . . . 1 . . . . 2 Programmer 8 | . . . . . . . . 3 . . . . . . . . . . . . . . . . . . . . 3 2 . . . . Heavy 2 | . . . . . . . . . . . . . . . . . . . . . . . . . . . . . . . . . 1 1 Behemoth 2 | . . . . . . . . . . . . . . . . . . . . . . . . . . . . . 1 . . . . 1 Best Kill Streak 9 | 1 5 1 . . 1 5 1 9 . . . . 2 3 4 2 . 1 . . . . 3 . . . . . 5 6 . . 4 5 Combat Bots Only 9 | . 5 . . . 1 5 1 9 . . . . 2 . 4 . . 1 . . . . 3 . . . . . 4 6 . . 4 4 Max Kills in Single Turn 3 | 1 1 1 . . 1 3 1 2 . . 1 . 2 1 3 1 . 1 . . . . 2 . . . . . 3 2 . . 2 2 Gunslinging 1 | . . . . . . 1 . . . . . . . . . . . . . . . . . . . . . . . . . . . . Exploded 3 | . . . . . . 3 . 2 . . . . 2 . 3 . . 1 . . . . . . . . . . 3 2 . . 2 . Melee . | . . . . . . . . . . . . . . . . . . . . . . . . . . . . . . . . . . . Uniques/NPCs Destroyed . | . . . . . . . . . . . . . . . . . . . . . . . . . . . . . . . . . . . Combat | -11 -10 -10 -10 -9 -8 -8 -8 -8 -7 -7 -7 -7 -6 -6 -6 -6 -6 -6 -6 -5 -5 -5 -5 -4 -4 -4 -4 -3 -3 -3 -3 -2 -2 -1 -------- Run | Yrd Mat Min Exi Min Mat Gar Mat Gar Fac Low Low Dat Pro Fac Gar Fac Low Low Zio Pro Fac Upp Upp Fac Upp Upp Zhi Pro Res Gar Qua Res DSF Acc Hostile Shots Fired 1213 | . 100 . . . 10 32 4 89 57 44 33 . 22 92 56 25 2 3 . 22 . 7 5 78 6 19 . 28 153 50 49 . 20 207 Missed 394 | . 25 . . . 2 6 2 35 20 22 9 . 4 34 17 12 1 2 . 5 . 2 1 15 2 6 . 11 56 22 12 . 5 66 Hits 819 | . 75 . . . 8 26 2 54 37 22 24 . 18 58 39 13 1 1 . 17 . 5 4 63 4 13 . 17 97 28 37 . 15 141 Melee 3 | . . . . . . . . . . . . . . . . . . . . . . . . . . . . . 1 . 1 . . 1 Projectile 816 | . 75 . . . 8 26 2 54 37 22 24 . 18 58 39 13 1 1 . 17 . 5 4 63 4 13 . 17 96 28 36 . 15 140 AOE 1 | . . . . . . . . . . . . . . . . . . . . . . . . . . . . . . . . . . 1 Critical Strikes 33 | . . . . . . 3 . 2 . 1 1 . . 1 1 . . . . 2 . . . 3 . . . 1 4 3 1 . 1 9 Actively Blocked 1 | . . . . . . . . . . . . . . . . . . . . 1 . . . . . . . . . . . . . . Damage Taken 13377 | . 707 . . . 106 364 33 794 421 230 224 . 333 1053 688 98 13 15 . 385 . 109 70 1144 86 173 . 259 1625 311 585 . 264 3287 Core 931 | . 96 . . . 21 34 . 71 33 34 48 . 38 100 29 . . . . . . . . 63 . 13 . 37 99 18 29 . . 168 Absorbed by Shields 2301 | . . . . . . 53 . 15 . . . . . . . . . . . . . . . 411 32 64 . 96 105 322 338 . 277 588 Redirected to Shielding 88 | . . . . . . . . . . . . . . . . . . . . 44 . 32 12 . . . . . . . . . . . Ignored by Resistances 95 | . . . . . 3 53 . . . . . . . . . . . . . . . . . . . . . . 39 . . . . . Regen/Repaired (Parts) 2432 | . 57 . . . . . . . 80 50 60 . 14 223 78 32 . . . 37 . . . 487 . 41 . 50 370 58 62 107 82 544 Core Remaining (%) 86 | 100 . . . 61 . . . 77 . . . . 78 . . . . . . 84 . . 100 . . . . 90 . . 88 . 100 89 Volleys Fired 323 | 10 52 . . 1 9 42 1 51 1 . . . 3 7 12 5 . 1 . . 1 4 3 1 . . . . 28 34 2 . 6 49 Largest 5 | 2 2 . . 1 3 3 3 3 1 . . . 1 1 1 1 . 1 . . 1 1 1 1 . . . . 1 2 1 . 1 5 Hottest 200 | 90 90 . . 48 165 165 165 166 39 . . . 39 48 39 39 . 39 . . 39 35 48 39 . . . . 60 99 105 . 60 200 Shots Fired 558 | 20 95 . . 1 15 95 3 111 1 . . . 3 7 12 5 . 1 . . 1 4 3 1 . . . . 28 35 2 . 6 109 Gun 368 | 20 27 . . . 9 91 3 91 . . . . . 4 . 4 . . . . . . . . . . . . 24 22 . . 3 70 Cannon 136 | . 68 . . 1 6 . . 14 . . . . . 2 . . . . . . . 4 3 . . . . . . 1 2 . . 35 Launcher 48 | . . . . . . 4 . 6 1 . . . 3 1 12 1 . 1 . . 1 . . 1 . . . . 2 12 . . 3 . Special 6 | . . . . . . . . . . . . . . . . . . . . . . . . . . . . . 2 . . . . 4 Kinetic 221 | . 68 . . 1 6 . . 14 . . . . . 6 . 4 . . . . . . 3 . . . . . 24 22 . . 3 70 Thermal 283 | 20 27 . . . 9 91 3 91 . . . . . . . . . . . . . 4 . . . . . . . 1 2 . . 35 Explosive 48 | . . . . . . 4 . 6 1 . . . 3 1 12 1 . 1 . . 1 . . 1 . . . . 2 12 . . 3 . Electromagnetic . | . . . . . . . . . . . . . . . . . . . . . . . . . . . . . . . . . . . Robot Hit Streak 19 | 11 9 . . . 9 13 10 19 . . . . . 8 1 2 . . . . . . 3 . . . . . 12 11 . . 12 9 Robot Miss Streak 7 | 1 4 . . 1 . 2 . 3 . . . . . . 2 1 . . . . . . . . . . . . 5 5 . . 1 7 Penetration Max 1 | . . . . . . . . 1 . . . . . . . . . . . . . . 1 . . . . . . . . . . . Secondary Targets 4 | . 1 . . . . 2 . . . . . . . . . . . . . . . . . . . . . . . . . . . 1 Max Gunslinging Chain 1 | . 1 . . . . 1 . . . . . . . . . . . . . . . . . . . . . . . . . . . 1 Shots Hit Robots 382 | 16 53 . 4 . 10 57 3 59 . 1 9 1 . 6 1 5 . . . . . . 1 . . 13 7 . 27 47 . . 4 58 Core Hits 281 | 3 24 1 . 1 5 27 1 33 . . 1 . 8 5 18 4 . 3 . . . . 3 . . 5 2 . 36 51 . . 10 40 Critical Kills 9 | . . . . . 2 . . 3 . . . . . 2 . . . . . . . . 1 . . . . . . . . . . 1 Critical Parts Destroyed 4 | . . . . . 1 . . 2 . . . . . . . . . . . . . . 1 . . . . . . . . . . . Critical Strikes 27 | 1 4 . . . 3 1 . 9 . . 1 . . 2 . . . . . . . . 2 . . . . . . 3 . . . 1 Burn 8 | 1 3 . . . . 1 . 3 . . . . . . . . . . . . . . . . . . . . . . . . . . Meltdown 1 | . . . . . . . . . . . . . . . . . . . . . . . . . . . . . . . . . . 1 Destroy 13 | . . . . . 3 . . 6 . . . . . 2 . . . . . . . . 2 . . . . . . . . . . . Blast 1 | . 1 . . . . . . . . . . . . . . . . . . . . . . . . . . . . . . . . . Sever 4 | . . . . . . . . . . . 1 . . . . . . . . . . . . . . . . . . 3 . . . . Melee Attacks 75 | . 2 . 4 . 1 . . . . 1 12 1 1 . . 2 . . . . . . . . . 13 7 . . 31 . . . . Impact 2 | . 2 . . . . . . . . . . . . . . . . . . . . . . . . . . . . . . . . . Slashing 63 | . . . . . . . . . . . 12 . 1 . . 2 . . . . . . . . . 13 4 . . 31 . . . . Piercing . | . . . . . . . . . . . . . . . . . . . . . . . . . . . . . . . . . . . Sneak Attacks 21 | . . . 4 . 1 . . . . 1 9 1 . . . 2 . . . . . . . . . . 3 . . . . . . . Combat Hostiles . | . . . . . . . . . . . . . . . . . . . . . . . . . . . . . . . . . . . Follow-up Attacks . | . . . . . . . . . . . . . . . . . . . . . . . . . . . . . . . . . . . Damage Inflicted 17325 | 193 895 18 . 19 232 1420 71 1931 . . 306 . 449 121 1318 213 . 222 . . . . 113 . . 935 337 . 1981 3874 . . 608 2069 Guns 7249 | 193 246 . . . 139 1138 71 942 . . . . . 87 . 67 . . . . . . . . . . . . 1445 1236 . . 191 1494 Cannons 1720 | . 633 . . . 90 . . 275 . . . . . 34 . . . . . . . . 113 . . . . . . . . . . 575 Explosions 5136 | . . . . . . 277 . 714 . . . . 449 . 1318 . . 222 . . . . . . . . . . 536 1203 . . 417 . Melee 3159 | . . . . . . . . . . . 306 . . . . 146 . . . . . . . . . 935 337 . . 1435 . . . . Ramming 61 | . 16 18 . 19 3 5 . . . . . . . . . . . . . . . . . . . . . . . . . . . . Kinetic 5665 | . 633 . . . 90 . . 275 . . . . . 121 . 67 . . . . . . 113 . . . . . 1445 1236 . . 191 1494 Thermal 3304 | 193 246 . . . 139 1138 71 942 . . . . . . . . . . . . . . . . . . . . . . . . . 575 Explosive 5136 | . . . . . . 277 . 714 . . . . 449 . 1318 . . 222 . . . . . . . . . . 536 1203 . . 417 . Electromagnetic . | . . . . . . . . . . . . . . . . . . . . . . . . . . . . . . . . . . . Impact . | . . . . . . . . . . . . . . . . . . . . . . . . . . . . . . . . . . . Slashing 3159 | . . . . . . . . . . . 306 . . . . 146 . . . . . . . . . 935 337 . . 1435 . . . . Piercing . | . . . . . . . . . . . . . . . . . . . . . . . . . . . . . . . . . . . Highest Corruption 8 | . . . . . 1 1 1 1 1 1 1 1 1 1 1 1 1 1 1 1 . . . 2 2 2 2 2 . . 3 . . 8 Average Corruption 1 | . . . . . 1 1 1 1 1 1 1 1 1 1 1 1 1 1 1 1 . . . 1 2 2 2 2 . . 2 . . 5 Corruption Purged . | . . . . . . . . . . . . . . . . . . . . . . . . . . . . . . . . . . . Corruption Blocked . | . . . . . . . . . . . . . . . . . . . . . . . . . . . . . . . . . . . Effects 204 | . . . . . . 9 1 8 4 6 4 1 8 . 5 4 4 6 2 10 . . . 6 6 27 1 24 . . 1 . . 67 Message Errors 56 | . . . . . . 2 . 1 1 2 3 . 3 . 2 3 2 2 1 5 . . . . . 8 . 7 . . 1 . . 13 Matter Fused 50 | . . . . . . 3 1 1 1 2 . . . . . 1 . 2 . 3 . . . 2 1 8 1 7 . . . . . 17 Heat Flow Errors 19 | . . . . . . . . 1 . 1 1 1 1 . . . 1 . . . . . . 1 . 1 . 4 . . . . . 7 Energy Discharges 26 | . . . . . . . . 2 . . . . 1 . . . 1 . . . . . . 2 3 5 . 1 . . . . . 11 Parts Rejected 3 | . . . . . . . . . . . . . . . . . . . . . . . . . . 1 . . . . . . . 2 Parts Fused 2 | . . . . . . . . . . . . . . . . . . . . . . . . . . . . 1 . . . . . 1 Data Loss (minor) 32 | . . . . . . 1 . 2 2 . . . 3 . 3 . . 2 1 1 . . . 1 2 2 . 4 . . . . . 8 Data Loss (major) 3 | . . . . . . . . 1 . 1 . . . . . . . . . . . . . . . . . . . . . . . 1 Misfires 2 | . . . . . . 2 . . . . . . . . . . . . . . . . . . . . . . . . . . . . Alerts 5 | . . . . . . . . . . . . . . . . . . . . 1 . . . . . 2 . . . . . . . 2 Weapon Failures 6 | . . . . . . 1 . . . . . . . . . . . . . . . . . . . . . . . . . . . 5 Overload Shots 1 | . . . . . . . . . . . . . . . . . . . . . . . . . . . . . . . 1 . . . Overflow Damage 1022 | . 21 . . . 2 . . 20 . . . . . . 57 29 . . . . . . 3 . . 510 159 . 21 155 . . 35 10 Projectiles 36 | . 21 . . . 2 . . . . . . . . . . . . . . . . . 3 . . . . . . . . . . 10 Explosions 229 | . . . . . . . . 20 . . . . . . 57 . . . . . . . . . . . . . 21 96 . . 35 . Melee 757 | . . . . . . . . . . . . . . . . 29 . . . . . . . . . 510 159 . . 59 . . . . Knockbacks 7 | . 7 . . . . . . . . . . . . . . . . . . . . . . . . . . . . . . . . . Impact . | . . . . . . . . . . . . . . . . . . . . . . . . . . . . . . . . . . . Kinetic 7 | . 7 . . . . . . . . . . . . . . . . . . . . . . . . . . . . . . . . . Secondary . | . . . . . . . . . . . . . . . . . . . . . . . . . . . . . . . . . . . Self-Inflicted Damage 207 | . . . . . . . . 74 . . . . 47 . 15 . . . . . . . . . . . . . . 8 . . 63 . Shots 6 | . . . . . . . . 2 . . . . 1 . 1 . . . . . . . . . . . . . . 1 . . 1 . Rammed 14 | . 4 2 . 5 1 2 . . . . . . . . . . . . . . . . . . . . . . . . . . . . Targets Rammed 15 | . 5 2 . 5 1 2 . . . . . . . . . . . . . . . . . . . . . . . . . . . . Kicked . | . . . . . . . . . . . . . . . . . . . . . . . . . . . . . . . . . . . Crushed 1 | . 1 . . . . . . . . . . . . . . . . . . . . . . . . . . . . . . . . . Highest Temperature 352 | 90 219 . . 18 120 262 57 240 4 159 132 196 279 48 2 5 91 . . 319 2 . 36 191 . 72 . 208 269 167 . . 6 352 Average Temperature 79 | 32 59 . . 10 33 93 33 81 2 69 68 102 106 12 2 5 53 . . 169 1 . 20 81 . 52 . 89 94 54 . . 4 128 Received Heat Transfer 2642 | . 192 . . . 9 158 . 178 69 84 36 . . 459 192 12 . . . 390 . 45 9 102 12 42 . 65 253 33 48 . 28 226 Effects 3 | . . . . . . . . . . . . . 2 . . . . . . 1 . . . . . . . . . . . . . . Energy Bleed 1 | . . . . . . . . . . . . . . . . . . . . 1 . . . . . . . . . . . . . . Interference 2 | . . . . . . . . . . . . . 2 . . . . . . . . . . . . . . . . . . . . . Siege Activations . | . . . . . . . . . . . . . . . . . . . . . . . . . . . . . . . . . . . Martial Activations . | . . . . . . . . . . . . . . . . . . . . . . . . . . . . . . . . . . . Shielding Activations . | . . . . . . . . . . . . . . . . . . . . . . . . . . . . . . . . . . . Robots Disrupted . | . . . . . . . . . . . . . . . . . . . . . . . . . . . . . . . . . . . Combat Hostiles . | . . . . . . . . . . . . . . . . . . . . . . . . . . . . . . . . . . . Robots Corrupted . | . . . . . . . . . . . . . . . . . . . . . . . . . . . . . . . . . . . Combat Hostiles . | . . . . . . . . . . . . . . . . . . . . . . . . . . . . . . . . . . . Parts Fried . | . . . . . . . . . . . . . . . . . . . . . . . . . . . . . . . . . . . Impact Corruptions . | . . . . . . . . . . . . . . . . . . . . . . . . . . . . . . . . . . . Robots Melted 1 | . . . . . . . . . . . . . . . . . . . . . . . . . . . . . . . . . . 1 Combat Hostiles . | . . . . . . . . . . . . . . . . . . . . . . . . . . . . . . . . . . . Parts Melted 22 | . 2 . . . . 4 2 8 . . . . . . . . . . . . . . . . . . . . 4 . . . 2 . Heat Transferred 6519 | 558 819 . . . 259 2294 111 1998 . . . . . . . . . . . . . . . . . . . . . . . . . 480 Parts Sabotaged 2 | . . . . . . . . . . . . . . . . . . . . . . . . . . . . . 2 . . . . . Parts Stolen . | . . . . . . . . . . . . . . . . . . . . . . . . . . . . . . . . . . . Parts Stripped . | . . . . . . . . . . . . . . . . . . . . . . . . . . . . . . . . . . . Power Chain Reactions . | . . . . . . . . . . . . . . . . . . . . . . . . . . . . . . . . . . . Alert | -11 -10 -10 -10 -9 -8 -8 -8 -8 -7 -7 -7 -7 -6 -6 -6 -6 -6 -6 -6 -5 -5 -5 -5 -4 -4 -4 -4 -3 -3 -3 -3 -2 -2 -1 ------- Run | Yrd Mat Min Exi Min Mat Gar Mat Gar Fac Low Low Dat Pro Fac Gar Fac Low Low Zio Pro Fac Upp Upp Fac Upp Upp Zhi Pro Res Gar Qua Res DSF Acc Maximum Alert Level 5 | . . . . . . 3 2 4 2 . . . . 1 4 3 . . . . . . . 2 . . . . 2 4 5 4 3 4 Low Security (%) 35 | 100 100 100 . 100 100 20 . . . . . . . 74 7 . . . . . 100 . . 35 . . . . 31 . . . . 17 Level 1 10 | . . . . . . 26 5 18 22 . . . . 25 12 . . . . . . . . 17 . . . . 46 2 . . . 5 Level 2 22 | . . . . . . 21 94 31 77 . . . . . 39 46 . . . . . . . 46 . . . . 22 16 . . 63 19 Level 3 20 | . . . . . . 30 . 39 . . . . . . 33 53 . . . . . . . . . . . . . 66 . 95 36 11 Level 4 9 | . . . . . . . . 11 . . . . . . 7 . . . . . . . . . . . . . . 13 . 4 . 44 Level 5 . | . . . . . . . . . . . . . . . . . . . . . . . . . . . . . . . . . . . High Security . | . . . . . . . . . . . . . . . . . . . . . . . . . . . . . . . . . . . Max Security . | . . . . . . . . . . . . . . . . . . . . . . . . . . . . . . . 99 . . . Peak Influence 1648 | 5 120 5 . 54 61 917 459 1116 587 . . . . 356 1108 857 . . . . 50 . . 693 . . . . 446 1208 1648 1100 729 1452 Initial 1100 | . 3 . . . . 1 446 259 585 . . . . . 177 581 . . . . . . . 68 . . . . 143 289 679 1100 658 436 Average 479 | . 40 . . 4 18 479 433 710 449 . . . . 100 650 687 . . . . 17 . . 353 . . . . 256 857 1602 988 650 807 Influence Increases 15702 | 15 462 5 . 54 231 956 33 927 278 278 41 . 371 728 962 623 210 482 . 233 127 273 515 1274 . 571 10 883 911 1099 68 . 261 2821 Destroy 0b10 Robot/C 8160 | . 320 . . 40 140 580 20 600 160 200 20 . 280 380 520 160 120 260 . 140 20 180 280 460 . 380 . 520 500 400 40 . 120 1320 Destroy 0b10 Robot/NC 450 | 15 20 5 . . 10 5 . . 10 . . . . 25 . 70 . . . . 5 . 5 95 . . 10 5 40 35 . . . 95 Destroy Leader 1152 | . 64 . . 10 54 20 10 30 34 10 10 . 20 90 40 44 20 40 . 20 10 10 . 124 . 30 . 30 96 50 . . 20 266 Allied During Kill 2973 | . . . . 3 10 53 3 34 36 68 11 . 71 164 145 95 70 152 . 73 16 83 230 244 . 131 . 298 171 107 26 . 10 669 Successful Hack 307 | . 55 . . . 16 37 . 28 26 . . . . 42 . 5 . . . . . . . 3 . . . . 44 . . . . 51 Disable Machine 450 | . . . . . . . . 45 . . . . . 15 30 135 . . . . . . . 90 . . . . 30 15 . . 15 75 Anti-Garrison Action 550 | . . . . . . 150 . 50 . . . . . . 100 . . . . . . . . . . . . . . 250 . . . . Destroy Structure 1285 | . 3 . . 1 1 96 . 110 12 . . . . 12 112 114 . . . . 76 . . 228 . . . . 30 167 2 . 96 225 Lose Combat Pursuer 375 | . . . . . . 15 . 30 . . . . . . 15 . . 30 . . . . . 30 . 30 . 30 . 75 . . . 120 Influence Decreases 15410 | 10 467 5 . 54 229 41 551 210 1021 560 132 . 371 475 106 930 690 520 284 233 102 298 406 710 464 603 187 670 738 277 639 904 410 2113 Entered New Map 4960 | . 2 . . . . 1 471 140 531 139 19 . . . 76 528 298 62 284 . . 10 . 41 250 40 177 . 70 97 529 682 220 293 Time Decay 7604 | 10 465 5 . 54 209 . 80 . 410 421 113 . 304 335 . 392 392 458 . 213 102 268 376 379 214 503 10 570 428 . . 222 . 671 Lost Part 280 | . . . . . . . . 10 . . . . . 20 10 10 . . . . . . 10 70 . . . . 70 . 10 . 10 60 Lost Ally 1991 | . . . . . 20 40 . 60 80 . . . 67 120 20 . . . . 20 . 20 20 220 . 60 . 100 170 180 100 . 180 514 Purge Threat 575 | . . . . . . . . . . . . . . . . . . . . . . . . . . . . . . . . . . 575 Squads Dispatched 66 | . 2 . . 1 6 . . . 5 . . . . 9 . 3 . . . . 1 . . 6 . 1 . 1 9 . 6 . 1 15 Investigation 7 | . . . . 1 2 . . . 3 . . . . 1 . . . . . . . . . . . . . . . . . . . . Extermination 16 | . . . . . . . . . 1 . . . . 2 . 2 . . . . 1 . . 2 . . . . 2 . . . . 6 Reinforcement 18 | . 2 . . . 1 . . . 1 . . . . 1 . 1 . . . . . . . 4 . . . . 2 . . . 1 5 Assault 16 | . . . . . . . . . . . . . . 2 . . . . . . . . . . . 1 . 1 2 . 6 . . 4 Garrison 9 | . . . . . 3 . . . . . . . . 3 . . . . . . . . . . . . . . 3 . . . . . Intercept . | . . . . . . . . . . . . . . . . . . . . . . . . . . . . . . . . . . . Searches Triggered . | . . . . . . . . . . . . . . . . . . . . . . . . . . . . . . . . . . . Data Miner Redirects 1 | . . . . . . . . . . . . . . . . . . . . . . . . . . . . . . . . . . 1 Construction Impeded 3 | . . . . . . . . . 1 . . . . . . . . . . . . . . 1 . . . . . . . . . 1 Haulers Reinforced 1 | . . . . . . . . . . . . . . . . 1 . . . . . . . . . . . . . . . . . . Active Scanning Responses . | . . . . . . . . . . . . . . . . . . . . . . . . . . . . . . . . . . . Cargo Convoy Interrupts 2 | . . . . . . . . . . . . . . 1 . . . . . . . . . . . . . . 1 . . . . . Stealth | -11 -10 -10 -10 -9 -8 -8 -8 -8 -7 -7 -7 -7 -6 -6 -6 -6 -6 -6 -6 -5 -5 -5 -5 -4 -4 -4 -4 -3 -3 -3 -3 -2 -2 -1 --------- Run | Yrd Mat Min Exi Min Mat Gar Mat Gar Fac Low Low Dat Pro Fac Gar Fac Low Low Zio Pro Fac Upp Upp Fac Upp Upp Zhi Pro Res Gar Qua Res DSF Acc Distress Signals 15 | . 1 . . . 1 . 1 . . . . . . 1 . 2 . . . . . . . 5 . . . . . . 1 . . 3 Communications Jammed 122 | . . . . . . . . . . . . . . . . . . . . . . . . . . . . . 112 . . . . 10 Distress Signals 122 | . . . . . . . . . . . . . . . . . . . . . . . . . . . . . 112 . . . . 10 Times Spotted 498 | . 22 . . . 8 21 1 32 16 10 2 . 16 23 21 11 7 12 . 8 . 13 10 29 1 21 . 28 39 24 12 . 13 98 Peak Tracking Total 11 | . 5 . . . 4 3 1 8 4 4 1 . 4 5 4 2 4 4 . 5 . 5 7 5 1 6 . 9 9 5 9 . 4 11 Tactical Retreats 16 | . . . . . . 1 . 1 . . . . . . 1 . . 2 . . . . . 2 . 1 . 1 . 4 . . . 3 Traps | -11 -10 -10 -10 -9 -8 -8 -8 -8 -7 -7 -7 -7 -6 -6 -6 -6 -6 -6 -6 -5 -5 -5 -5 -4 -4 -4 -4 -3 -3 -3 -3 -2 -2 -1 ------- Run | Yrd Mat Min Exi Min Mat Gar Mat Gar Fac Low Low Dat Pro Fac Gar Fac Low Low Zio Pro Fac Upp Upp Fac Upp Upp Zhi Pro Res Gar Qua Res DSF Acc Traps Triggered 22 | . 1 . . . . 1 . 5 . . . . . . 8 . . . . . . . . . . . . . . 3 2 . . 2 Indirectly . | . . . . . . . . . . . . . . . . . . . . . . . . . . . . . . . . . . . Trap Hack Attempts 24 | . 24 . . . . . . . . . . . . . . . . . . . . . . . . . . . . . . . . . Triggered . | . . . . . . . . . . . . . . . . . . . . . . . . . . . . . . . . . . . Disarmed 1 | . 1 . . . . . . . . . . . . . . . . . . . . . . . . . . . . . . . . . Reprogrammed 4 | . 4 . . . . . . . . . . . . . . . . . . . . . . . . . . . . . . . . . Reused . | . . . . . . . . . . . . . . . . . . . . . . . . . . . . . . . . . . . Traps Extracted . | . . . . . . . . . . . . . . . . . . . . . . . . . . . . . . . . . . . Installed 1 | . . . . . . . . . . . . . . . . . . . . . . . . . . . . 1 . . . . . . Triggered . | . . . . . . . . . . . . . . . . . . . . . . . . . . . . . . . . . . . Most Traps Carried 1 | . . . . . . . . . . . . . . . . . . . . . . . . . . . . 1 1 . . . . . Machines | -11 -10 -10 -10 -9 -8 -8 -8 -8 -7 -7 -7 -7 -6 -6 -6 -6 -6 -6 -6 -5 -5 -5 -5 -4 -4 -4 -4 -3 -3 -3 -3 -2 -2 -1 ---------- Run | Yrd Mat Min Exi Min Mat Gar Mat Gar Fac Low Low Dat Pro Fac Gar Fac Low Low Zio Pro Fac Upp Upp Fac Upp Upp Zhi Pro Res Gar Qua Res DSF Acc Machines Disabled 37 | . . . . . . 3 . 3 . . . . 1 1 2 9 . . . . . . 1 6 . 1 . . 2 2 . . 1 5 Max in Single Turn 2 | . . . . . . . . 1 . . . . 1 . 2 . . . . . . . 1 . . . . . . 1 . . 1 1 Garrison Access 4 | . . . . . . . . . 1 . . . . 1 . . . . . . . . . . . . . . . . . . . 2 Garrison Relay 1 | . . . . . . . . . . . . . . . . . . . . . . . . . . . . . . 1 . . . . Phase Generator 2 | . . . . . . 1 . . . . . . . . 1 . . . . . . . . . . . . . . . . . . . Machines Repaired . | . . . . . . . . . . . . . . . . . . . . . . . . . . . . . . . . . . . Machines Dismantled 1 | . . . . . . . . 1 . . . . . . . . . . . . . . . . . . . . . . . . . . Machines Sabotaged . | . . . . . . . . . . . . . . . . . . . . . . . . . . . . . . . . . . . Overloaded Fab Kills . | . . . . . . . . . . . . . . . . . . . . . . . . . . . . . . . . . . . Hacking | -11 -10 -10 -10 -9 -8 -8 -8 -8 -7 -7 -7 -7 -6 -6 -6 -6 -6 -6 -6 -5 -5 -5 -5 -4 -4 -4 -4 -3 -3 -3 -3 -2 -2 -1 --------- Run | Yrd Mat Min Exi Min Mat Gar Mat Gar Fac Low Low Dat Pro Fac Gar Fac Low Low Zio Pro Fac Upp Upp Fac Upp Upp Zhi Pro Res Gar Qua Res DSF Acc Machines Accessed 78 | . 8 . 2 1 3 4 2 3 7 2 . 3 . 5 1 4 2 2 . . 1 1 1 2 1 1 4 . 4 . . 2 . 12 Terminals 35 | . 7 . . . 1 4 1 3 3 . . . . 2 1 2 . . . . . . 1 1 . . . . . . . 1 . 8 Fabricators 3 | . . . . . . . . . . . . . . . . 1 . . . . 1 . . . . . . . 1 . . . . . Repair Stations 6 | . 1 . . . . . . . 2 . . . . . . . . . . . . . . 1 . . . . 1 . . 1 . . Recycling Units 1 | . . . . . . . . . 1 . . . . . . . . . . . . . . . . . . . . . . . . . Scanalyzers 6 | . . . . . 1 . . . . . . . . 1 . 1 . . . . . . . . . . . . 1 . . . . 2 Garrison Access 8 | . . . . . 1 . 1 . 1 . . . . 2 . . . . . . . . . . . . . . 1 . . . . 2 Total Hacks 195 | . 20 . 2 1 12 4 3 6 16 4 . 24 . 10 3 10 5 8 . . 2 1 5 3 1 1 17 . 8 . . 3 . 26 Successful 133 | . 11 . 2 1 6 3 1 3 7 4 . 24 . 6 . 4 5 8 . . . 1 5 3 1 1 17 . 7 . . 1 . 12 Failed 61 | . 9 . . . 6 1 2 3 9 . . . . 4 3 5 . . . . 2 . . . . . . . 1 . . 2 . 14 Catastrophic 13 | . 1 . . . . 1 1 1 3 . . . . 2 1 1 . . . . . . . . . . . . . . . 1 . 1 Database Lockouts 1 | . . . . . . . . . . . . . . . . 1 . . . . . . . . . . . . . . . . . . Manual 43 | . 10 . 1 . 7 . 1 . 2 . . . . 3 . 7 . . . . 2 . . . . . . . 1 . . . . 9 Terminals 75 | . 16 . . . 4 4 1 6 6 . . . . 3 3 6 . . . . . . 5 1 . . . . . . . 2 . 18 Fabricators 6 | . . . . . . . . . . . . . . . . 2 . . . . 2 . . . . . . . 2 . . . . . Repair Stations 15 | . 4 . . . . . . . 6 . . . . . . . . . . . . . . 2 . . . . 2 . . 1 . . Recycling Units 3 | . . . . . . . . . 3 . . . . . . . . . . . . . . . . . . . . . . . . . Scanalyzers 15 | . . . . . 4 . . . . . . . . 3 . 2 . . . . . . . . . . . . 2 . . . . 4 Garrison Access 17 | . . . . . 4 . 2 . 1 . . . . 4 . . . . . . . . . . . . . . 2 . . . . 4 Terminal Hacks 93 | . 9 . 2 1 1 3 . 3 1 4 . 24 . . . 1 5 8 . . . 1 5 1 1 1 17 . . . . 1 . 4 Record 31 | . . . 1 . . . . . . 3 . 6 . . . . 4 7 . . . . 5 . . . 5 . . . . . . . Part Schematic 14 | . . . . . . . . . . . . 10 . . . . . . . . . . . . . . 4 . . . . . . . Robot Schematic 5 | . . . . . . . . . . . . 5 . . . . . . . . . . . . . . . . . . . . . . Robot Analysis 9 | . 4 . . . 1 . . . . . . . . . . . . . . . . . . . . . 4 . . . . . . . Prototype ID Bank 10 | . 3 . . . . . . . . . . 3 . . . . . . . . . . . . . . 4 . . . . . . . Open Door 9 | . . . . 1 . 1 . . . 1 . . . . . . 1 1 . . . 1 . . 1 1 . . . . . . . 1 Open DSF 1 | . . . . . . . . . . . . . . . . . . . . . . . . . . . . . . . . 1 . . Branch Access Points 3 | . . . . . . . . . 1 . . . . . . 1 . . . . . . . . . . . . . . . . . 1 Emergency Access Points 2 | . . . . . . 1 . 1 . . . . . . . . . . . . . . . . . . . . . . . . . . Unreport Threat 2 | . . . . . . . . . . . . . . . . . . . . . . . . . . . . . . . . . . 2 Locate Traps 2 | . 1 . . . . . . . . . . . . . . . . . . . . . . 1 . . . . . . . . . . Registered Components 1 | . 1 . . . . . . . . . . . . . . . . . . . . . . . . . . . . . . . . . Garrison Registry 1 | . . . . . . . . 1 . . . . . . . . . . . . . . . . . . . . . . . . . . Patrol Navigation 1 | . . . . . . . . 1 . . . . . . . . . . . . . . . . . . . . . . . . . . Security Stations 1 | . . . . . . 1 . . . . . . . . . . . . . . . . . . . . . . . . . . . . Proto ID Catalog 1 | . . . 1 . . . . . . . . . . . . . . . . . . . . . . . . . . . . . . . Fabricator Hacks 2 | . . . . . . . . . . . . . . . . . . . . . . . . . . . . . 2 . . . . . Load Schematic 1 | . . . . . . . . . . . . . . . . . . . . . . . . . . . . . 1 . . . . . Build 1 | . . . . . . . . . . . . . . . . . . . . . . . . . . . . . 1 . . . . . Repair Station Hacks 8 | . 2 . . . . . . . 2 . . . . . . . . . . . . . . 2 . . . . 2 . . . . . Scan Component 5 | . 1 . . . . . . . 2 . . . . . . . . . . . . . . 1 . . . . 1 . . . . . Repair 3 | . 1 . . . . . . . . . . . . . . . . . . . . . . 1 . . . . 1 . . . . . Recycling Unit Hacks 2 | . . . . . . . . . 2 . . . . . . . . . . . . . . . . . . . . . . . . . Process 1 | . . . . . . . . . 1 . . . . . . . . . . . . . . . . . . . . . . . . . Retrieve Matter 1 | . . . . . . . . . 1 . . . . . . . . . . . . . . . . . . . . . . . . . Scanalyzer 10 | . . . . . 2 . . . . . . . . 2 . 1 . . . . . . . . . . . . 2 . . . . 3 Insert Component 1 | . . . . . . . . . . . . . . 1 . . . . . . . . . . . . . . . . . . . . Retrieve Study 9 | . . . . . 2 . . . . . . . . 1 . 1 . . . . . . . . . . . . 2 . . . . 3 Garrison Access Hacks 10 | . . . . . 1 . 1 . 1 . . . . 2 . . . . . . . . . . . . . . 1 . . . . 4 Unlock Access 5 | . . . . . 1 . 1 . . . . . . 2 . . . . . . . . . . . . . . 1 . . . . . Seal Access 3 | . . . . . . . . . 1 . . . . . . . . . . . . . . . . . . . . . . . . 2 Coupler Status 2 | . . . . . . . . . . . . . . . . . . . . . . . . . . . . . . . . . . 2 Unauthorized Hacks 8 | . . . . . 2 . . . 1 . . . . 2 . 2 . . . . . . . . . . . . . . . . . 1 Terminals 5 | . . . . . 1 . . . 1 . . . . 1 . 1 . . . . . . . . . . . . . . . . . 1 Botnet 5 | . . . . . 1 . . . 1 . . . . 1 . 1 . . . . . . . . . . . . . . . . . 1 Fabricators 1 | . . . . . . . . . . . . . . . . 1 . . . . . . . . . . . . . . . . . . Liberate 1 | . . . . . . . . . . . . . . . . 1 . . . . . . . . . . . . . . . . . . Repair Stations . | . . . . . . . . . . . . . . . . . . . . . . . . . . . . . . . . . . . Recycling Units . | . . . . . . . . . . . . . . . . . . . . . . . . . . . . . . . . . . . Scanalyzers . | . . . . . . . . . . . . . . . . . . . . . . . . . . . . . . . . . . . Garrison Access 2 | . . . . . 1 . . . . . . . . 1 . . . . . . . . . . . . . . . . . . . . Reprogram 2 | . . . . . 1 . . . . . . . . 1 . . . . . . . . . . . . . . . . . . . . Data Cores Recovered 1 | . . . . . . . . . . . . . . . . 1 . . . . . . . . . . . . . . . . . . Used . | . . . . . . . . . . . . . . . . . . . . . . . . . . . . . . . . . . . Hacking Detections 52 | . 8 . . . 2 3 2 3 6 . . . . 4 1 4 . . . . 1 . 1 2 . . . . 3 . . 2 . 10 Full Trace Events 6 | . . . . . 1 . . 1 3 . . . . 1 . . . . . . . . . . . . . . . . . . . . Feedback Events 2 | . . . . . 1 . . . . . . . . 1 . . . . . . . . . . . . . . . . . . . . Corruption 2 | . . . . . 1 . . . . . . . . 1 . . . . . . . . . . . . . . . . . . . . Feedback Blocked . | . . . . . . . . . . . . . . . . . . . . . . . . . . . . . . . . . . . Robot Schematics Acquired 5 | . . . . . . . . . . . . 5 . . . . . . . . . . . . . . . . . . . . . . Robots Built . | . . . . . . . . . . . . . . . . . . . . . . . . . . . . . . . . . . . Authchips . | . . . . . . . . . . . . . . . . . . . . . . . . . . . . . . . . . . . Time . | . . . . . . . . . . . . . . . . . . . . . . . . . . . . . . . . . . . Total Robot Build Rating . | . . . . . . . . . . . . . . . . . . . . . . . . . . . . . . . . . . . Part Schematics Acquired 14 | . . . . . . . . . . . . 10 . . . . . . . . . . . . . . 4 . . . . . . . Parts Built 1 | . . . . . . . . . . . . . . . . . . . . . . . . . . . . . 1 . . . . . Authchips 1 | . . . . . . . . . . . . . . . . . . . . . . . . . . . . . 1 . . . . . Time 50 | . . . . . . . . . . . . . . . . . . . . . . . . . . . . . 50 . . . . . Total Part Build Rating 5 | . . . . . . . . . . . . . . . . . . . . . . . . . . . . . 5 . . . . . Part Studies Acquired 9 | . . . . . 2 . . . . . . . . 1 . 1 . . . . . . . . . . . . 2 . . . . 3 Parts Repaired 3 | . 1 . . . . . . . . . . . . . . . . . . . . . . 1 . . . . 1 . . . . . Time 80 | . 26 . . . . . . . . . . . . . . . . . . . . . . 38 . . . . 16 . . . . . Parts Recycled . | . . . . . . . . . . . . . . . . . . . . . . . . . . . . . . . . . . . Recycled Matter 212 | . . . . . . . . . 212 . . . . . . . . . . . . . . . . . . . . . . . . . Retrieved Matter 212 | . . . . . . . . . 212 . . . . . . . . . . . . . . . . . . . . . . . . . Retrieved Components . | . . . . . . . . . . . . . . . . . . . . . . . . . . . . . . . . . . . Parts Scanalyzed 1 | . . . . . . . . . . . . . . 1 . . . . . . . . . . . . . . . . . . . . Part Schematics Acquired . | . . . . . . . . . . . . . . . . . . . . . . . . . . . . . . . . . . . Parts Damaged . | . . . . . . . . . . . . . . . . . . . . . . . . . . . . . . . . . . . Bothacking | -11 -10 -10 -10 -9 -8 -8 -8 -8 -7 -7 -7 -7 -6 -6 -6 -6 -6 -6 -6 -5 -5 -5 -5 -4 -4 -4 -4 -3 -3 -3 -3 -2 -2 -1 ------------ Run | Yrd Mat Min Exi Min Mat Gar Mat Gar Fac Low Low Dat Pro Fac Gar Fac Low Low Zio Pro Fac Upp Upp Fac Upp Upp Zhi Pro Res Gar Qua Res DSF Acc Used RIF Installer 5 | . . . . . . 1 . 1 . . . . . . 2 . . . . . . . . . . . . . . 1 . . . . Hotswap 1 | . . . . . . . . 1 . . . . . . . . . . . . . . . . . . . . . . . . . . Command Fork 1 | . . . . . . . . . . . . . . . . . . . . . . . . . . . . . . 1 . . . . Signal Jammer 1 | . . . . . . . . . . . . . . . 1 . . . . . . . . . . . . . . . . . . . Program Shield 1 | . . . . . . . . . . . . . . . 1 . . . . . . . . . . . . . . . . . . . Robots Hacked 13 | . . . 4 . 1 . . . . 1 . 1 . . . . . . . . . . . . . . 3 . 1 . . . . 2 Non-combat 6 | . . . 3 . . . . . . . . . . . . . . . . . . . . . . . . . 1 . . . . 2 Combat 7 | . . . 1 . 1 . . . . 1 . 1 . . . . . . . . . . . . . . 3 . . . . . . . Robot Hacks Applied 15 | . . . 4 . 1 . . . . 1 . 1 . . . . . . . . . . . . . . 3 . 1 . . . . 4 parse_system 10 | . . . 4 . 1 . . . . 1 . 1 . . . . . . . . . . . . . . 3 . . . . . . . purge_threat 2 | . . . . . . . . . . . . . . . . . . . . . . . . . . . . . . . . . . 2 formatsys_low 2 | . . . . . . . . . . . . . . . . . . . . . . . . . . . . . . . . . . 2 formatsys_high 1 | . . . . . . . . . . . . . . . . . . . . . . . . . . . . . 1 . . . . . Relay Couplers Released 14 | . . . . . . . . . . . . . . 2 3 . . . . . . . . . . . . . . 5 . . . 4 Machine Destruction 7 | . . . . . . . . . . . . . . 2 . . . . . . . . . . . . . . . 5 . . . . Programmers 7 | . . . . . . . . . . . . . . . 3 . . . . . . . . . . . . . . . . . . 4 Attached 2 | . . . . . . . . . . . . . . . . . . . . . . . . . . . . . 1 . . . . 1 Fabnet Peak Effective % . | . . . . . . . . . . . . . . . . . . . . . . . . . . . . . . . . . . . Robots Rewired 14 | . . . . . . 2 . . . . . . . . . . . . . . . 3 . . . 1 . 2 . 6 . . . . Allies Hacked 18 | . . . . . . . . . 1 . . . . . . 1 . . . . . . . 2 . . . . . . 4 . . 10 Hacks Repelled 8 | . . . . . . . . . . . . . . . . . . . . . . . . . . . . . . . . . . 8 Allies | -11 -10 -10 -10 -9 -8 -8 -8 -8 -7 -7 -7 -7 -6 -6 -6 -6 -6 -6 -6 -5 -5 -5 -5 -4 -4 -4 -4 -3 -3 -3 -3 -2 -2 -1 -------- Run | Yrd Mat Min Exi Min Mat Gar Mat Gar Fac Low Low Dat Pro Fac Gar Fac Low Low Zio Pro Fac Upp Upp Fac Upp Upp Zhi Pro Res Gar Qua Res DSF Acc Total Allies 31 | . . . . 3 1 3 . 2 . . . . . . . 3 2 . . . . 3 . . . 1 . 2 1 8 . . . 2 Largest Group 7 | . . . . 3 1 3 2 2 . . . . . . . 3 4 . . . . 3 3 2 . . . 1 1 7 . . . 1 Highest-Rated Group 263 | . . . . 40 21 73 50 56 . . . . . . . 87 114 . . . . 90 90 60 . . . 64 116 263 . . . 45 Highest-Rated Ally 116 | . . . . 16 21 34 34 34 . . . . . . . 29 31 . . . . 30 30 30 . . . 64 116 80 . . . 45 Total Orders 87 | . . . . . . . 2 1 6 . 2 . . . 4 3 2 6 . 5 2 4 8 6 2 5 2 4 5 5 . 2 . 11 STAY 39 | . . . . . . . 1 . 4 . 1 . . . 2 2 1 3 . 2 1 2 4 2 1 2 1 2 4 1 . 1 . 2 ROAM 6 | . . . . . . . . 1 . . . . . . . . . . . . . . . . . 1 . . . 3 . . . 1 FOLLOW 37 | . . . . . . . 1 . 2 . 1 . . . 2 1 1 3 . 3 1 2 4 4 1 2 1 2 1 1 . 1 . 3 AID 1 | . . . . . . . . . . . . . . . . . . . . . . . . . . . . . . . . . . 1 DROP 4 | . . . . . . . . . . . . . . . . . . . . . . . . . . . . . . . . . . 4 Ally Attacks 1485 | . . . . 15 13 49 . 23 76 42 6 . 77 110 55 31 38 36 . 33 5 44 44 127 1 56 . 123 87 23 17 . 22 332 Total Damage 52853 | . . . . 158 157 1219 . 497 1310 647 111 . 1484 3309 1623 2142 770 1171 . 1088 208 1592 1303 5314 23 2302 . 4787 3899 801 884 . 761 15293 Kills 351 | . . . . 2 5 12 . 7 10 10 1 . 12 19 14 21 6 13 . 7 2 10 13 42 1 19 . 27 14 5 2 . 1 76 Allies Corrupted 14 | . . . . 1 . . . . . . . . . 1 . . . . . . . . . 2 . 1 . . 2 . 2 . 1 4 Allies Melted 4 | . . . . . . . . . . . . . . . . 1 . . . . . . . . . 1 . . . 1 . . . 1 Borg Created 114 | . . . . . . . . . 8 2 1 . 3 5 6 1 2 1 . 1 . 3 1 3 3 4 . 4 8 11 . 4 5 38 Largest Collective 7 | . . . . . . . . . 4 5 5 . 4 5 5 4 5 6 . 5 . 6 7 4 4 5 . 6 4 6 . 4 5 6 Intel | -11 -10 -10 -10 -9 -8 -8 -8 -8 -7 -7 -7 -7 -6 -6 -6 -6 -6 -6 -6 -5 -5 -5 -5 -4 -4 -4 -4 -3 -3 -3 -3 -2 -2 -1 ------- Run | Yrd Mat Min Exi Min Mat Gar Mat Gar Fac Low Low Dat Pro Fac Gar Fac Low Low Zio Pro Fac Upp Upp Fac Upp Upp Zhi Pro Res Gar Qua Res DSF Acc Active Infowar (turns) 10616 | . . . . . . . . . . . . . . . . 262 884 1146 389 884 . 833 1424 210 323 1446 279 1800 736 . . . . . Optics 2 | . . . . . . . . . . . . . . . . . . . . . . . . . . . . . 2 . . . . . IFF 9604 | . . . . . . . . . . . . . . . . 262 884 1146 389 884 . 833 1424 210 323 1446 279 1524 . . . . . . Decoding 1010 | . . . . . . . . . . . . . . . . . . . . . . . . . . . . 276 734 . . . . . Robot Analysis Total 9 | . 4 . . . 1 . . . . . . . . . . . . . . . . . . . . . 4 . . . . . . . Derelict Logs Recovered 15 | . . 1 . 2 . . . . . 1 1 . 1 . . . 1 2 . 1 . 2 1 . 1 1 . . . . . . . . Drone Launches . | . . . . . . . . . . . . . . . . . . . . . . . . . . . . . . . . . . . Drone Recoveries . | . . . . . . . . . . . . . . . . . . . . . . . . . . . . . . . . . . . Decoded 0b10 Intel 23 | . . . . . . . . . . . . . . . . . . . . . . . . . . . . . 23 . . . . . Traps 4 | . . . . . . . . . . . . . . . . . . . . . . . . . . . . . 4 . . . . . Emergency Access 3 | . . . . . . . . . . . . . . . . . . . . . . . . . . . . . 3 . . . . . Items 11 | . . . . . . . . . . . . . . . . . . . . . . . . . . . . . 11 . . . . . Machines 4 | . . . . . . . . . . . . . . . . . . . . . . . . . . . . . 4 . . . . . Guards 1 | . . . . . . . . . . . . . . . . . . . . . . . . . . . . . 1 . . . . . Exploration | -11 -10 -10 -10 -9 -8 -8 -8 -8 -7 -7 -7 -7 -6 -6 -6 -6 -6 -6 -6 -5 -5 -5 -5 -4 -4 -4 -4 -3 -3 -3 -3 -2 -2 -1 ------------- Run | Yrd Mat Min Exi Min Mat Gar Mat Gar Fac Low Low Dat Pro Fac Gar Fac Low Low Zio Pro Fac Upp Upp Fac Upp Upp Zhi Pro Res Gar Qua Res DSF Acc Turns Passed 34605 | 219 1572 706 491 1038 656 1274 169 1084 993 1267 1032 121 1045 1202 1296 922 934 1148 389 1015 400 1220 2105 955 459 1446 279 1868 1049 2091 143 465 334 3218 Spaces Moved 19378 | 105 703 438 299 561 272 648 38 665 532 840 749 90 728 550 764 542 620 787 223 652 250 817 1215 424 274 774 179 968 530 918 90 229 172 1732 Core 1 | 1 . . . . . . . . . . . . . . . . . . . . . . . . . . . . . . . . . . Treads 3048 | 104 703 438 299 561 272 648 13 . . . . . . 8 . . . . . . . . . . . . . . . 1 . . . 1 Legs . | . . . . . . . . . . . . . . . . . . . . . . . . . . . . . . . . . . . Wheels 16329 | . . . . . . . 25 665 532 840 749 90 728 542 764 542 620 787 223 652 250 817 1215 424 274 774 179 968 530 917 90 229 172 1731 Hover . | . . . . . . . . . . . . . . . . . . . . . . . . . . . . . . . . . . . Flight . | . . . . . . . . . . . . . . . . . . . . . . . . . . . . . . . . . . . Fastest Speed 50 | 50 160 160 160 160 160 160 115 115 130 115 105 105 105 110 110 130 100 130 130 130 130 130 130 130 160 130 130 143 118 118 148 143 130 100 Average Speed 144 | 158 160 160 160 179 160 160 130 115 144 144 128 109 134 166 127 139 129 130 130 130 130 130 157 151 160 160 132 161 139 145 150 158 149 131 Slowest Speed 490 | 160 160 160 160 240 160 160 160 130 145 145 145 135 135 480 140 170 130 130 130 130 130 130 175 175 175 175 160 185 215 490 180 180 190 360 Overloaded Moves . | . . . . . . . . . . . . . . . . . . . . . . . . . . . . . . . . . . . Propulsion Burnouts . | . . . . . . . . . . . . . . . . . . . . . . . . . . . . . . . . . . . Robots Hopped . | . . . . . . . . . . . . . . . . . . . . . . . . . . . . . . . . . . . Potential Cave-ins 8 | . . . . . . . . . . . . . . . . . . . . . . . . . . . . . . . . . . 8 Cave-ins Triggered 1 | . . . . . . . . . . . . . . . . . . . . . . . . . . . . . . . . . . 1 Exploration Rate (%) 57 | 5 89 91 70 90 19 92 6 77 14 96 95 76 91 21 81 15 71 92 14 74 12 97 93 14 69 80 60 88 10 57 37 3 82 28 Regions Visited 34 Branch Regions 18 Pre-discovered Areas 10 | . . . 1 . . . . . . 1 . 1 . . . . 1 2 . . . 1 . . . . 3 . . . . . . . Known Exits Taken 14 | . . . . . 1 . 1 . 1 . . . . 1 . 1 . . . 1 1 . 1 1 1 . . 1 1 . 1 1 . . Unknown Exits Taken 15 | 1 1 1 1 1 . . . . . 1 1 1 1 . . . 1 1 1 . . 1 . . . 1 1 . . . . . . . Scrap Searched 40 | . . 1 . 2 . . . . . 2 8 . . . . . 3 4 . 5 . 2 4 . 1 3 . 5 . . . . . . Spaces Dug 205 | . 2 . . . 1 7 . 48 . . 3 . 49 7 . 12 . 14 . . . . . 5 . . . . . 48 1 . . 8 Terrain Destroyed 509 | . 2 . . 1 1 28 . 63 11 . 3 . 49 8 82 12 . 14 . . 13 4 1 5 . . . . . 162 1 . 37 12 Melee 9 | . 2 . . . . . . . . . 3 . . . . . . . . . . . . . . . . . . 4 . . . . Projectile 38 | . . . . 1 1 . . 8 . . . . . 1 . . . . . . . 4 1 . . . . . . 9 1 . . 12 AOE 462 | . . . . . . 28 . 55 11 . . . 49 7 82 12 . 14 . . 13 . . 5 . . . . . 149 . . 37 . Terrain Rammed . | . . . . . . . . . . . . . . . . . . . . . . . . . . . . . . . . . . . Walls Destroyed . | . . . . . . . . . . . . . . . . . . . . . . . . . . . . . . . . . . . Machines Disabled . | . . . . . . . . . . . . . . . . . . . . . . . . . . . . . . . . . . . Actions | -11 -10 -10 -10 -9 -8 -8 -8 -8 -7 -7 -7 -7 -6 -6 -6 -6 -6 -6 -6 -5 -5 -5 -5 -4 -4 -4 -4 -3 -3 -3 -3 -2 -2 -1 --------- Run | Yrd Mat Min Exi Min Mat Gar Mat Gar Fac Low Low Dat Pro Fac Gar Fac Low Low Zio Pro Fac Upp Upp Fac Upp Upp Zhi Pro Res Gar Qua Res DSF Acc Total 25567 | 134 1053 442 311 591 479 809 155 872 756 891 804 113 790 833 1081 702 748 910 322 819 325 971 1400 731 294 961 217 1272 841 1623 96 333 249 2639 Wait 4578 | 8 199 . . 14 171 84 107 82 203 41 22 18 36 227 237 128 119 113 96 157 65 109 165 280 12 158 2 213 210 513 1 87 37 664 Move 19342 | 104 702 437 298 560 271 647 37 664 531 839 748 89 727 549 763 541 619 786 222 651 249 816 1214 423 273 773 178 967 529 916 89 228 171 1731 Hop . | . . . . . . . . . . . . . . . . . . . . . . . . . . . . . . . . . . . Pick Up 156 | 6 21 1 2 3 5 1 1 5 1 2 5 . 2 6 9 3 1 1 . 2 1 6 2 2 2 3 2 7 12 9 . 6 4 23 Fast Attach 138 | 6 4 . . 1 5 . 2 4 2 1 4 1 5 11 4 6 2 1 1 2 2 1 2 9 . 2 7 3 18 9 1 3 4 15 Attach 95 | . . . . 1 2 . . 2 1 1 3 1 3 6 5 3 . 1 1 2 3 2 1 2 2 1 2 . 7 12 1 . 2 28 Detach 90 | . 1 . . . 2 . 1 1 2 1 3 1 3 6 4 3 . 1 1 1 2 1 1 1 . 1 6 1 8 11 1 . 2 24 Swap 134 | . 21 1 2 1 5 8 2 14 1 . 1 . 1 3 1 1 2 3 . 1 . 4 7 2 1 2 4 8 2 11 . . 6 19 Drop 239 | . 22 1 5 5 7 4 4 10 6 3 5 2 6 13 8 9 3 2 1 2 2 5 3 4 1 2 9 13 16 20 1 5 11 29 Fire 323 | 10 52 . . 1 9 42 1 51 1 . . . 3 7 12 5 . 1 . . 1 4 3 1 . . . . 28 34 2 . 6 49 Melee 75 | . 2 . 4 . 1 . . . . 1 12 1 1 . . 2 . . . . . . . . . 13 7 . . 31 . . . . Ram . | . . . . . . . . . . . . . . . . . . . . . . . . . . . . . . . . . . . Kick . | . . . . . . . . . . . . . . . . . . . . . . . . . . . . . . . . . . . Crush 15 | . 5 2 . 5 1 2 . . . . . . . . . . . . . . . . . . . . . . . . . . . . Escape Stasis 83 | . . . . . . . . 31 . . . . . . 32 . . . . . . . . . . . . . . 10 . . . 10 Rewire 131 | . . . . . . 21 . . . . . . . . . . . . . . . 20 . . . 1 . 55 1 31 . . . 2 Trap 25 | . 24 . . . . . . . . . . . . . . . . . . . . . . . . . . 1 . . . . . . Miscellaneous 143 | . . . . . . . . 8 8 2 1 . 3 5 6 1 2 1 . 1 . 3 2 7 3 5 . 4 10 16 . 4 6 45 Route ------- -11/Scrapyard -10/Materials (discovered 4 exits: [*Mat x3] / [*Min]) -10/Mines (discovered 2 exits: [*Mat] / *Exi) -10/Exiles -9/Mines (discovered 2 exits: *Mat x2) -8/Materials (discovered 2 exits: Fac / Gar) -8/Garrison (discovered 3 exits: *Mat x3) -8/Materials -8/Garrison (discovered 3 exits: *Fac x3) -7/Factory (discovered 2 exits: *Low x2) -7/Lower Caves -7/Lower Caves (discovered 2 exits: *Fac / *Dat) -7/Data Miner -6/Proximity Caves -6/Factory -6/Garrison (discovered 3 exits: *Fac x3) -6/Factory (discovered 2 exits: *Low x2) -6/Lower Caves -6/Lower Caves (discovered 2 exits: *Fac / [*Zio]) -6/Zion -5/Proximity Caves -5/Factory (discovered 2 exits: Fac / *Upp) -5/Upper Caves -5/Upper Caves (discovered 2 exits: *Fac / *War) -4/Factory -4/Upper Caves -4/Upper Caves (discovered 2 exits: *Res / *Zhi) -4/Zhirov -3/Proximity Caves -3/Research (discovered 3 exits: Res / *Qua / Gar) -3/Garrison (discovered 2 exits: *Qua x2) -3/Quarantine -2/Research -2/DSF -1/Access (discovered 2 exits: [*Sur] / Com) To Epsilon Eridani History --------- Turn | Location | Event 27 | -11/Scrapyard | Discovered new exit (range 15) 220 | -11/Scrapyard | Entered Materials 334 | -10/Materials | Build established: Mutant 996 | -10/Materials | Discovered new exit (range 10) 1093 | -10/Materials | Discovered new exit (range 8) 1276 | -10/Materials | Repaired Ion Engine 1417 | -10/Materials | Discovered new exit (range 14) 1665 | -10/Materials | Discovered new exit (range 13) 1792 | -10/Materials | Entered Mines 1833 | -10/Mines | Assembled infested the area 1838 | -10/Mines | Assisted by a Guerilla fighting off Assembled 1928 | -10/Mines | Learned location of 1 exit from Materials 2148 | -10/Mines | Discovered new exit (range 16) 2215 | -10/Mines | A weapon hastily lodged in a ceiling crevice suddenly fell to the ground 2402 | -10/Mines | Deemed a non-threat by the Exiles lab entrance 2491 | -10/Mines | Discovered new exit (range 5) 2498 | -10/Mines | Entered Exiles 2537 | -10/Exiles | Met 8R-AWN 2566 | -10/Exiles | Met EX-HEX 2642 | -10/Exiles | Met EX-DEC 2689 | -10/Exiles | Learned location of Zion (-6) 2725 | -10/Exiles | Met EX-BIN 2744 | -10/Exiles | Aligned with FarCom system 2746 | -10/Exiles | Given EX-Vault access code 2783 | -10/Exiles | Opened EX-Vault 2797 | -10/Exiles | Found XL Autogun Array 2832 | -10/Exiles | Warned to stay clear of 0b10 Research branches 2968 | -10/Exiles | Discovered new exit (range 15) 2989 | -10/Exiles | Left Exiles lab with XL Autogun Array 2989 | -10/Exiles | Entered Mines 3006 | -9/Mines | Received a Rocket Launcher from a helpful Derelict 3022 | -9/Mines | Learned Materials trap positions 3045 | -9/Mines | Discovered new exit (range 9) 3048 | -9/Mines | Discovered new exit (range 11) 3137 | -9/Mines | Learned Materials garrison access intel 3254 | -9/Mines | Assisted by bots powering up and referring to "LRC-V3" 3661 | -9/Mines | Met a Derelict shopkeep closing up shop 4027 | -9/Mines | Entered Materials 4027 | -8/Materials | Accompanied by 1 ally 4027 | -8/Materials | Evolved 4 slots: Propulsion x1, Utility x2, Weapon x1 4028 | -8/Materials | Identified exit to Factory 4029 | -8/Materials | Loaded intel: 18 trap records 4030 | -8/Materials | Loaded intel: 1 garrison access location 4207 | -8/Materials | Garrison activated, responded to threat 4344 | -8/Materials | Met 7R-MNS 4415 | -8/Materials | Build established: Scavenger-Skirmisher 4462 | -8/Materials | Identified exit to Garrison 4683 | -8/Materials | Entered Garrison 4683 | -8/Garrison | Accompanied by 1 ally 4737 | -8/Garrison | Triggered checkpoint 4812 | -8/Garrison | Learned Materials security intel 4874 | -8/Garrison | Triggered checkpoint 4928 | -8/Garrison | Triggered checkpoint 4985 | -8/Garrison | Triggered checkpoint 5037 | -8/Garrison | Discovered new exit (range 13) 5092 | -8/Garrison | Rescued a captive Derelict 5137 | -8/Garrison | Triggered checkpoint 5464 | -8/Garrison | Triggered checkpoint 5565 | -8/Garrison | Phase Generator disabled 5613 | -8/Garrison | Installed Relay Interface Framework 5642 | -8/Garrison | Discovered new exit (range 3) 5723 | -8/Garrison | Triggered checkpoint 5881 | -8/Garrison | Discovered new exit (range 10) 5957 | -8/Garrison | Entered Materials 5957 | -8/Materials | Accompanied by 2 allies 6004 | -8/Materials | Identified exit to Garrison 6126 | -8/Materials | Entered Garrison 6126 | -8/Garrison | Accompanied by 2 allies 6152 | -8/Garrison | Triggered checkpoint 6276 | -8/Garrison | Triggered checkpoint 6277 | -8/Garrison | Build established: Skirmisher 6306 | -8/Garrison | Triggered checkpoint 6382 | -8/Garrison | Destroyed 9 combat bots 6432 | -8/Garrison | Expanded RIF knowledge: Hotswap 6477 | -8/Garrison | Discovered exit to Factory (range 12) 6514 | -8/Garrison | Triggered checkpoint 6596 | -8/Garrison | Rescued a captive Derelict 6597 | -8/Garrison | Rescued a captive Derelict 6661 | -8/Garrison | Triggered checkpoint 6708 | -8/Garrison | Discovered exit to Factory (range 8) 6922 | -8/Garrison | Triggered checkpoint 7029 | -8/Garrison | Discovered exit to Factory (range 10) 7043 | -8/Garrison | Discovered exit to Factory (range 40) 7043 | -8/Garrison | Discovered exit to Factory (range 6) 7043 | -8/Garrison | Discovered exit to Factory (range 80) 7210 | -8/Garrison | Entered Factory 7210 | -7/Factory | Evolved 2 slots: Weapon x2 7213 | -7/Factory | Found Prototype Special Melee Weapon 7213 | -7/Factory | Identified 1B-0RG's Assimilator 7350 | -7/Factory | Assimilating Administrator 4a into Collective. 7417 | -7/Factory | Discovered new exit (range 12) 7434 | -7/Factory | Assimilating Guardian 4a into Collective. 7519 | -7/Factory | Build established: Mutant 7677 | -7/Factory | Identified exit to Lower Caves 7734 | -7/Factory | Assimilating Transporter 4a into Collective. 7807 | -7/Factory | Assimilating Guardian 4b into Collective. 7839 | -7/Factory | Assimilating Commando 4a into Collective. 7860 | -7/Factory | Assimilating Commando 4b into Collective. 7941 | -7/Factory | Assimilating Commando 4c into Collective. 8078 | -7/Factory | Assimilating Commando 4d into Collective. 8203 | -7/Factory | Entered Lower Caves 8203 | -7/Lower Caves | Accompanied by 4 allies 8468 | -7/Lower Caves | Entered a destroyed Warlord outpost 8747 | -7/Lower Caves | Assimilating Fighter 4a into Collective. 8752 | -7/Lower Caves | Discovered new exit (range 16) 8953 | -7/Lower Caves | Encountered a Warlord checkpoint 8973 | -7/Lower Caves | Assimilating G9-5DC(g) into Collective. 9126 | -7/Lower Caves | Attracted the attention of an 0b10 checkpoint 9470 | -7/Lower Caves | Entered another Lower Caves area 9470 | -7/Lower Caves | Accompanied by 5 allies 9657 | -7/Lower Caves | Discovered new exit (range 14) 9669 | -7/Lower Caves | Learned Factory terminal intel 9970 | -7/Lower Caves | Attracted the attention of an 0b10 checkpoint 9978 | -7/Lower Caves | Assimilating Guardian 4c into Collective. 10285 | -7/Lower Caves | Discovered new exit (range 15) 10502 | -7/Lower Caves | Entered Data Miner 10502 | -7/Data Miner | Accompanied by 5 allies 10502 | -7/Data Miner | Discovered new exit (range 6) 10527 | -7/Data Miner | Met Data Miner 10561 | -7/Data Miner | Learned location of Section 7 (-2) 10561 | -7/Data Miner | Acquired the access code to Warlord's prototype stash 10575 | -7/Data Miner | Received God Mode back door access code from Data Miner 10623 | -7/Data Miner | Entered Proximity Caves 10623 | -6/Proximity Caves | Accompanied by 5 allies 10669 | -6/Proximity Caves | Lost 3 allies 10887 | -6/Proximity Caves | Assimilating Gladiator 5a into Collective. 10890 | -6/Proximity Caves | Assimilating Soldier 5a into Collective. 11037 | -6/Proximity Caves | Assimilating Slayer 5a into Collective. 11314 | -6/Proximity Caves | Learned Factory interactive machine intel 11468 | -6/Proximity Caves | Found Alien Artifact 11468 | -6/Proximity Caves | Identified Dimensional Node Initializer 11468 | -6/Proximity Caves | Initialized slip node 11660 | -6/Proximity Caves | Discovered new exit (range 3) 11668 | -6/Proximity Caves | Entered Factory 11668 | -6/Factory | Accompanied by 3 allies 11668 | -6/Factory | Evolved 2 slots: Propulsion x1, Utility x1 11669 | -6/Factory | Loaded intel: 54 interactive machine locations 11670 | -6/Factory | Loaded intel: 26 terminal locations 11940 | -6/Factory | Identified exit to Garrison 12053 | -6/Factory | Assimilating Soldier 5b into Collective. 12326 | -6/Factory | Assimilating Veteran 5a into Collective. 12500 | -6/Factory | Assimilating Soldier 5c into Collective. 12525 | -6/Factory | Assimilating Soldier 5d into Collective. 12558 | -6/Factory | Garrison activated, responded to threat 12689 | -6/Factory | Cargo convoy interrupted 12734 | -6/Factory | Lost 3 allies 12834 | -6/Factory | Identified exit to Garrison 12851 | -6/Factory | Assimilating Guardian 5a into Collective. 12870 | -6/Factory | Entered Garrison 12870 | -6/Garrison | Accompanied by 1 ally 13027 | -6/Garrison | Spotted B-75 Beast 13088 | -6/Garrison | Assimilating Beast 5a into Collective. 13091 | -6/Garrison | Build established: Scavenger-Mutant 13250 | -6/Garrison | Triggered checkpoint 13253 | -6/Garrison | Assimilating Soldier 5e into Collective. 13264 | -6/Garrison | Assimilating Soldier 5f into Collective. 13304 | -6/Garrison | Assimilating Sage 5a into Collective. 13356 | -6/Garrison | Discovered new exit (range 16) 13364 | -6/Garrison | Phase Generator disabled 13369 | -6/Garrison | Expanded RIF knowledge: Program Shield 13483 | -6/Garrison | Expanded RIF knowledge: Signal Jamming 13567 | -6/Garrison | Triggered checkpoint 13640 | -6/Garrison | Triggered checkpoint 13665 | -6/Garrison | Discovered new exit (range 10) 13774 | -6/Garrison | Triggered checkpoint 13777 | -6/Garrison | Triggered checkpoint 13862 | -6/Garrison | Spotted B-75 Beast 13873 | -6/Garrison | Assimilating Beast 5b into Collective. 14051 | -6/Garrison | Assimilating Guardian 5b into Collective. 14062 | -6/Garrison | Discovered new exit (range 9) 14166 | -6/Garrison | Entered Factory 14166 | -6/Factory | Accompanied by 5 allies 14652 | -6/Factory | Identified exit to Lower Caves 14907 | -6/Factory | Assimilating Guardian 5c into Collective. 14914 | -6/Factory | Central database locked down 15088 | -6/Factory | Entered Lower Caves 15088 | -6/Lower Caves | Accompanied by 6 allies 15097 | -6/Lower Caves | Assimilating Soldier 5g into Collective. 15351 | -6/Lower Caves | Entered an active Warlord outpost 15362 | -6/Lower Caves | Learned Extension emergency access door positions 15362 | -6/Lower Caves | Learned Research stockpile data 15362 | -6/Lower Caves | Learned Armory garrison access intel 15385 | -6/Lower Caves | A Commander dispatched an escort 15393 | -6/Lower Caves | Assimilating XZ-AI6(g) into Collective. 15396 | -6/Lower Caves | Build established: Mutant 15677 | -6/Lower Caves | Discovered new exit (range 9) 16022 | -6/Lower Caves | Entered another Lower Caves area 16022 | -6/Lower Caves | Accompanied by 7 allies 16022 | -6/Lower Caves | Discovered new exit (range 18) 16023 | -6/Lower Caves | Commander's escort returned to base 16023 | -6/Lower Caves | Commander's escort returned to base 16204 | -6/Lower Caves | Learned location of 1 exit from Proximity Caves 16318 | -6/Lower Caves | Entered an active Warlord outpost 16318 | -6/Lower Caves | Learned location of Extension (-5) 16356 | -6/Lower Caves | Learned Research stockpile data 16356 | -6/Lower Caves | Learned Armory security intel 16369 | -6/Lower Caves | Assimilating 83-BQT(g) into Collective. 16633 | -6/Lower Caves | Discovered new exit (range 38) 17170 | -6/Lower Caves | Entered Zion 17170 | -6/Zion | Accompanied by 6 allies 17283 | -6/Zion | Given A8's code to call for help 17285 | -6/Zion | Discovered new exit (range 19) 17559 | -6/Zion | Entered Proximity Caves 17559 | -5/Proximity Caves | Accompanied by 6 allies 17560 | -5/Proximity Caves | Identified exit to Factory 17623 | -5/Proximity Caves | Attracted the attention of an 0b10 checkpoint 17807 | -5/Proximity Caves | Learned 4 Factory zone layouts 18176 | -5/Proximity Caves | Spotted B-75 Beast 18181 | -5/Proximity Caves | Assimilating Beast 6a into Collective. 18574 | -5/Proximity Caves | Entered Factory 18574 | -5/Factory | Accompanied by 5 allies 18574 | -5/Factory | Evolved 2 slots: Power x1, Utility x1 18575 | -5/Factory | Identified exit to Factory 18750 | -5/Factory | Build established: Scavenger-Mutant 18921 | -5/Factory | Discovered new exit (range 14) 18952 | -5/Factory | Identified exit to Upper Caves 18974 | -5/Factory | Entered Upper Caves 18974 | -5/Upper Caves | Accompanied by 5 allies 19276 | -5/Upper Caves | Assimilating Soldier 6a into Collective. 19292 | -5/Upper Caves | Assimilating Warrior 6a into Collective. 19967 | -5/Upper Caves | Discovered new exit (range 3) 19984 | -5/Upper Caves | Assimilating Veteran 6a into Collective. 19988 | -5/Upper Caves | Learned location of 1 exit from Proximity Caves 20048 | -5/Upper Caves | Attacked by a delusional Derelict stockpiling Unaware 20194 | -5/Upper Caves | Entered another Upper Caves area 20194 | -5/Upper Caves | Accompanied by 9 allies 20204 | -5/Upper Caves | Discovered exit to Factory (range 21) 20734 | -5/Upper Caves | Attracted the attention of an 0b10 base 20826 | -5/Upper Caves | Learned Armory terminal intel 20826 | -5/Upper Caves | Learned location of 1 exit from Research 20826 | -5/Upper Caves | Learned location of 1 exit from Factory 20826 | -5/Upper Caves | Identified exit to Warlord 20826 | -5/Upper Caves | Learned location of 1 exit from Upper Caves 21251 | -5/Upper Caves | Build established: Mutant 21492 | -5/Upper Caves | Assimilating KO-EX7(S) into Collective. 21915 | -5/Upper Caves | Build established: Scavenger-Mutant 22007 | -5/Upper Caves | Learned Factory stockpile data 22299 | -5/Upper Caves | Entered Factory 22299 | -4/Factory | Accompanied by 9 allies 22299 | -4/Factory | Evolved 2 slots: Utility x2 22300 | -4/Factory | Identified exit to Upper Caves 22352 | -4/Factory | Repaired Hrd. Medium Armor Plating 22577 | -4/Factory | Spotted B-86 Titan 22660 | -4/Factory | Lost 6 allies 22737 | -4/Factory | Allies destroyed B-86 Titan 22816 | -4/Factory | Assimilating Sage 7a into Collective. 22827 | -4/Factory | Build established: Derelict-Mutant 23067 | -4/Factory | Assimilating Sentinel 7a into Collective. 23153 | -4/Factory | Build established: Scavenger-Mutant 23189 | -4/Factory | Assimilating Sentinel 7b into Collective. 23254 | -4/Factory | Entered Upper Caves 23254 | -4/Upper Caves | Accompanied by 1 ally 23255 | -4/Upper Caves | Identified exit to Upper Caves 23310 | -4/Upper Caves | Learned location of 1 exit from Research 23434 | -4/Upper Caves | Assimilating 8U-P0G(S) into Collective. 23457 | -4/Upper Caves | Assimilating N0-8BX(S) into Collective. 23610 | -4/Upper Caves | Attracted the attention of an 0b10 checkpoint 23617 | -4/Upper Caves | Assimilating Sentinel 7c into Collective. 23713 | -4/Upper Caves | Entered another Upper Caves area 23713 | -4/Upper Caves | Accompanied by 4 allies 23713 | -4/Upper Caves | Discovered new exit (range 12) 23940 | -4/Upper Caves | Learned Research terminal intel 24080 | -4/Upper Caves | Encountered a Warlord checkpoint 24097 | -4/Upper Caves | Assimilating Q8-VNU(M) into Collective. 24728 | -4/Upper Caves | Attracted the attention of an 0b10 checkpoint 25027 | -4/Upper Caves | Attracted the attention of an 0b10 outpost 25043 | -4/Upper Caves | Assimilating Warden 7a into Collective. 25053 | -4/Upper Caves | Assimilating Warrior 7a into Collective. 25134 | -4/Upper Caves | Discovered new exit (range 14) 25151 | -4/Upper Caves | Assimilating Z3-C9D(b) into Collective. 25157 | -4/Upper Caves | Attacked by a faux Warlord 25159 | -4/Upper Caves | Entered Zhirov 25159 | -4/Zhirov | Accompanied by 4 allies 25159 | -4/Zhirov | Discovered new exit (range 4) 25186 | -4/Zhirov | Met Zhirov 25228 | -4/Zhirov | Learned location of Quarantine (-3) 25228 | -4/Zhirov | Learned location of Testing (-2) 25228 | -4/Zhirov | Learned location of Command (-1) 25236 | -4/Zhirov | Zhirov requested help retrieving the SGEMP Prototype 25256 | -4/Zhirov | Found Alien Artifact 25256 | -4/Zhirov | Identified Integrated Reactor 25256 | -4/Zhirov | Installed Integrated Reactor, increased core energy generation (+10) 25386 | -4/Zhirov | Found Alien Artifact 25438 | -4/Zhirov | Entered Proximity Caves 25438 | -3/Proximity Caves | Accompanied by 4 allies 25439 | -3/Proximity Caves | Identified exit to Research 25537 | -3/Proximity Caves | Assimilating Cleanser 8a into Collective. 25589 | -3/Proximity Caves | Attracted the attention of an 0b10 outpost 25606 | -3/Proximity Caves | Assimilating Warden 8a into Collective. 25712 | -3/Proximity Caves | Assimilating Warden 8b into Collective. 25893 | -3/Proximity Caves | Assimilating Swordsman 8a into Collective. 26364 | -3/Proximity Caves | Attracted the attention of an 0b10 checkpoint 27306 | -3/Proximity Caves | Entered Research 27306 | -3/Research | Accompanied by 2 allies 27306 | -3/Research | Evolved 2 slots: Utility x2 27307 | -3/Research | Identified exit to Quarantine 27307 | -3/Research | Identified exit to Research 27309 | -3/Research | Loaded intel: 20 terminal locations 27507 | -3/Research | Spotted B-86 Titan 27528 | -3/Research | Destroyed B-86 Titan 27592 | -3/Research | Fabricated Lgt. Regenerative Plating (x1) 27769 | -3/Research | Assimilating Warden 8c into Collective. 27816 | -3/Research | Assimilating Warden 8d into Collective. 27843 | -3/Research | Repaired Arm. Wheel+ 28014 | -3/Research | Cargo convoy interrupted 28021 | -3/Research | Spotted Striker 28033 | -3/Research | Assimilating Striker into Collective. 28039 | -3/Research | Assimilating Master 8a into Collective. 28064 | -3/Research | Garrison activated, responded to threat 28073 | -3/Research | Found Exp. Core Analyzer 28077 | -3/Research | Lost 3 allies 28077 | -3/Research | Found Prototype Processor 28077 | -3/Research | Identified Exp. Target Analyzer 28088 | -3/Research | Found Centrium Heavy Armor Plating 28098 | -3/Research | Found Prototype Processor 28098 | -3/Research | Identified Spectral Analyzer 28099 | -3/Research | Lost 7 parts (2n5u) 28114 | -3/Research | Found Exp. Target Analyzer 28135 | -3/Research | Found Prototype Processor 28135 | -3/Research | Identified Exp. Signal Interpreter 28139 | -3/Research | Found Centrium Heavy Armor Plating 28260 | -3/Research | Assimilating Warden 8e into Collective. 28306 | -3/Research | First assault squad dispatched 28324 | -3/Research | Assimilating Rainmaker 8a into Collective. 28331 | -3/Research | Assimilating Rainmaker 8b into Collective. 28336 | -3/Research | Identified exit to Garrison 28353 | -3/Research | Assimilating Champion 8a into Collective. 28355 | -3/Research | Entered Garrison 28355 | -3/Garrison | Accompanied by 1 ally 28411 | -3/Garrison | Triggered checkpoint 28438 | -3/Garrison | Triggered checkpoint 28455 | -3/Garrison | Garrison Relay disabled 28662 | -3/Garrison | Assimilating Plague 8a into Collective. 28751 | -3/Garrison | Spotted B-86 Titan 28754 | -3/Garrison | Triggered checkpoint 28759 | -3/Garrison | Allies destroyed B-86 Titan 28789 | -3/Garrison | Assimilating Warden 8f into Collective. 28843 | -3/Garrison | Assimilating Plague 8b into Collective. 28860 | -3/Garrison | Assimilating Plague 8c into Collective. 28949 | -3/Garrison | Triggered checkpoint 28981 | -3/Garrison | Discovered exit to Quarantine (range 14) 29070 | -3/Garrison | Assimilating Plague 8d into Collective. 29251 | -3/Garrison | Expanded RIF knowledge: Command Fork 29331 | -3/Garrison | Found embedded Infiltrators 29334 | -3/Garrison | Assimilating AQ-WWO(x) into Collective. 29767 | -3/Garrison | Assimilating QY-P8K(x) into Collective. 29784 | -3/Garrison | Lost 4 allies 29827 | -3/Garrison | Assimilating Veteran 8c into Collective. 29833 | -3/Garrison | Assimilating Veteran 8b into Collective. 29863 | -3/Garrison | Assimilating Veteran 8a into Collective. 30163 | -3/Garrison | Triggered checkpoint 30165 | -3/Garrison | Assimilating Warden 8g into Collective. 30337 | -3/Garrison | Discovered exit to Quarantine (range 12) 30347 | -3/Garrison | Triggered checkpoint 30446 | -3/Garrison | Entered Quarantine 30446 | -3/Quarantine | Accompanied by 6 allies 30447 | -3/Quarantine | Maximum security lockdown engaged 30568 | -3/Quarantine | Discovered exit to Research (range 12) 30589 | -3/Quarantine | Entered Research 30589 | -2/Research | Evolved 2 slots: Power x1, Utility x1 30618 | -2/Research | Lost 5 allies 30666 | -2/Research | Assimilating Serf 9a into Collective. 30715 | -2/Research | Assimilating Serf 9b into Collective. 30860 | -2/Research | Assimilating Engineer 9a into Collective. 31025 | -2/Research | Assimilating Processor 9a into Collective. 31054 | -2/Research | Identified exit to DSF 31054 | -2/Research | Entered DSF 31054 | -2/DSF | Accompanied by 4 allies 31056 | -2/DSF | Assimilating Rainmaker 9a into Collective. 31113 | -2/DSF | Additional patrols routed to DSF 31149 | -2/DSF | Assimilating Electro 9a into Collective. 31177 | -2/DSF | Lost 3 allies 31208 | -2/DSF | Discovered new exit (range 14) 31243 | -2/DSF | Assimilating Enforcer 9a into Collective. 31247 | -2/DSF | Assimilating Enforcer 9b into Collective. 31248 | -2/DSF | Assimilating Enforcer 9c into Collective. 31295 | -2/DSF | Lost 4 allies 31388 | -2/DSF | Entered Access 31388 | -1/Access | Evolved 2 slots: Propulsion x2 31485 | -1/Access | Assimilating Eye 10a into Collective. 31627 | -1/Access | Build established: Mutant 31718 | -1/Access | Assimilating Excavator 10a into Collective. 31751 | -1/Access | Assimilating Excavator 10b into Collective. 31759 | -1/Access | Assimilating Conveyor 10a into Collective. 31842 | -1/Access | Assimilating Master 10a into Collective. 31847 | -1/Access | Assimilating Master 10b into Collective. 31935 | -1/Access | Assimilating Master 10c into Collective. 31937 | -1/Access | Assimilating Master 10d into Collective. 32165 | -1/Access | Watched by a mysterious "MATRIX" hacker. 32165 | -1/Access | Identified exit to Command 32198 | -1/Access | Assimilating Master 10e into Collective. 32275 | -1/Access | Lost 3 allies 32388 | -1/Access | First assault squad dispatched 32437 | -1/Access | Assimilating Eye 10b into Collective. 32567 | -1/Access | Assimilating Conveyor 10b into Collective. 32582 | -1/Access | Assimilating Processor 10a into Collective. 32598 | -1/Access | Assimilating Enforcer 10a into Collective. 32602 | -1/Access | Assimilating Swordsman 10a into Collective. 32616 | -1/Access | Assimilating Processor 10b into Collective. 32702 | -1/Access | Assimilating Conveyor 10c into Collective. 32717 | -1/Access | Discovered new exit (range 6) 32816 | -1/Access | Crushed by falling debris 33148 | -1/Access | Assimilating Swordsman 10b into Collective. 33170 | -1/Access | Assimilating Conveyor 10d into Collective. 33189 | -1/Access | Lost 3 allies 33239 | -1/Access | Assimilating Processor 10c into Collective. 33328 | -1/Access | Build established: Hacker-Mutant 33504 | -1/Access | Assimilating Enforcer 10b into Collective. 33551 | -1/Access | Assimilating Conveyor 10e into Collective. 33590 | -1/Access | Assimilating Processor 10d into Collective. 33646 | -1/Access | Assimilating Master 10f into Collective. 33665 | -1/Access | Assimilating Processor 10e into Collective. 33671 | -1/Access | Lost 3 allies 33782 | -1/Access | Assimilating Processor 10f into Collective. 33804 | -1/Access | Spotted B-99 Colossus 33839 | -1/Access | Destroyed B-99 Colossus 33867 | -1/Access | Lost 3 allies 33877 | -1/Access | Assimilating Processor 10g into Collective. 33879 | -1/Access | Assimilating Processor 10h into Collective. 33907 | -1/Access | Spotted B-99 Colossus 33920 | -1/Access | Allies destroyed B-99 Colossus 34046 | -1/Access | Lost 3 allies 34096 | -1/Access | Assimilating Enforcer 10c into Collective. 34106 | -1/Access | Lost 3 parts (2p1w) 34106 | -1/Access | Assimilating Enforcer 10d into Collective. 34125 | -1/Access | Assimilating Enforcer 10e into Collective. 34151 | -1/Access | Assimilating Plague 10a into Collective. 34154 | -1/Access | Incoming assault squad redirected 34167 | -1/Access | Assimilating Plague 10b into Collective. 34169 | -1/Access | Lost 3 allies 34175 | -1/Access | Assimilating Artificer 10a into Collective. 34245 | -1/Access | Assimilating Processor 10i into Collective. 34288 | -1/Access | Assimilating Enforcer 10f into Collective. 34321 | -1/Access | Assimilating Processor 10j into Collective. 34363 | -1/Access | Assimilating Conveyor 10f into Collective. 34568 | -1/Access | Assimilating Conveyor 10g into Collective. 34586 | -1/Access | Build established: Scavenger-Mutant 34606 | *** | Escaped! Last Messages --------------- 34406_ Acquired Particle Reactor. 34408_ Imp. Field Recycling Unit collects Particle Reactor, recycling 6 matter... 34409_ Imp. Field Recycling Unit collects Particle Reactor, recycling 24 matter... 34411_ K-01 Serf cleans the Main Access Lift. 34416_ R-10 Processor collects Particle Reactor. 34419_ K-01 Serf cleans the Main Access Lift. 34430_ System corrupted: Component data lost. 34466_ System corrupted: Energy discharge (-208). 34500_ System corrupted: Energy discharge (-182). 34508_ Acquired 40 matter. 34516_ Acquired 74 matter. 34560_ RH:TFT0L9HKL7UKDZ XWI K 34568_ 1B-0RG's Assimilator injects Conveyor 10g to begin assimilation process, ETC: 20. 34581_ System corrupted: Matter fused (-5). 34588_ Borg Conveyor 10g assimilation complete, grew Sfc. Borg Fist (x2), Sfc. Targeting Obfuscator. 34605_ System corrupted: Imp. Field Recycling Unit fused. Map ----- +----------------------------------------------------+ | ??# ###### #?????????????????????? | | ??# ] #????# #############?????????? | | ??# #????# # """S""" #?????????? | | ??# *=[=! #????# # """ """ #?????????? | | ??###/####/#######????# # #?????????? | | ????# ### [ ##????????# # #?????????? | | ????# ### ##????????# + #?????????? | | ????# #?????????# # #?????????? | | ????# % #?????????# # #?????????? | | ##??# #??????#### #############?????????? | | #?# #??????# #??????????????????? | | ### ##?????# #??????????????????? | | #" "#?????# #??????????????????? | | #"" "#?????# #??????????????????? | | #"" "#?????# #??????????????????? | | ]#"" T#?????# #????????########??? | | #"" "#?????# #????????# #??? | | #"T "#?????#" "" #????????# #??? | | #"" "#?????# """"""#????????# #??? | | #"" ##?????# ""?????????????# ] #??? | | ]#"" #??????# """""#????????# #??? | | #"" #??????# u #????????# [=#??? | | #" #??????# #????????# #### | | ### #??????# #????????# +=[! | | ##### #??????# ""g #????????# ]#### | | #??????# "@ #????????# #??? | | #??????# A R #????????# #??? | | #??????# AR #????????# #??? | | ##########+####????# R #????????# ###? | | ????# #???## u m ##???????# " ## | | ????# #???# #????######+####### | | ????# " #???##"" ##????# ! % | | ????# """ #????#"" R A##????# =% | | ????# """ #????# #?????# #####"##### | | ????# " #????# #?????# #?### ## | | ????# #?#### k #?????# #???####### | | ##### ### # #?????# #?????# | | ###+############ ####### #?????# | | % #?????# | | #?????# | | % ##########+####################+########## | | #+#### # ####### #??# # | | ## #####??????##??# + | | = "# #??????????????# "" # | | ## #??????????????# """" # | | %"# "" #??????????????# """" # | | # "" #??????????????# """" # | | #! """""" #??????????????# """" # | | = !# """""" #??????????????# """" # | | = *|#| "" #??????????????# "" # | +----------------------------------------------------+ Best States ------------- Heat Dissipation 93 Energy Generation 75 Energy Capacity 1150 Matter Stores 750 Matter Capacity 800 Sight Range 24 Terrain Scan Density 10 Base Temperature (-) 200 Armor Coverage 750 Resistance: KI 20 Resistance: TH 15 Propulsion Shielding 66 Phase Shifting 10 Evasion (%) 50 Targeting Accuracy 8 Target Analysis 10 Core Analysis 11 Recoil Reduction 3 Offensive Hacking 24 Relay Coupler Types 1 Relay Coupler Value 34 Authchip Count 1 Item Schematics ----------------- Combat Drone Bay | -7/Data Miner | Free Lgt. Regenerative Plating | -7/Data Miner | Free Cld. Aerolev Unit | -7/Data Miner | Free Gravity Neutralizer | -7/Data Miner | Free Cld. Plasma Cannon | -7/Data Miner | Free Thunder Leg | -7/Data Miner | Free Point Defense System | -7/Data Miner | Free Lance | -7/Data Miner | Free Phase Cannon | -7/Data Miner | Free Hvy. Gauss Cannon | -7/Data Miner | Free Assault Drone Bay | -4/Zhirov | Free Exp. Heat Sink | -4/Zhirov | Free Exp. Optical Array | -4/Zhirov | Free Imp. Arc Thrower | -4/Zhirov | Free Robot Schematics ------------------ B-48 Gladiator | -7/Data Miner | Free H-55 Commando | -7/Data Miner | Free M-22 Extractor | -7/Data Miner | Free E-15 Imp | -7/Data Miner | Free G-50 Soldier | -7/Data Miner | Free Fabricated ------------ Lgt. Regenerative Plating | x1 | -3/Research | Authchip Repaired ---------- Ion Engine | 5% | -10/Materials Hrd. Medium Armor Plating | 20% | -4/Factory Arm. Wheel | 23% | -3/Research Studied --------- Beam Rifle | -8/Materials | Hacked Rocket Launcher | -8/Materials | Hacked Arm. Huge Wheel | -6/Factory | Hacked Wheel | -6/Factory | Hacked Arm. Wheel | -3/Research | Hacked Lgt. Antimatter Reactor | -3/Research | Hacked Centrium Wheel | -1/Access | Hacked Lgt. Quantum Reactor | -1/Access | Hacked Enh. Nova Cannon | -1/Access | Hacked Alien Tech Used ----------------- Dimensional Node Initializer Integrated Reactor Achievements -------------- None Challenges ------------ None Game ------ Seed SlugLatentFirepult Manual? 0 Play Time 03:20:35 Cumulative 2110.6 hours Start 2026.01.22 @ 03:00:40 End 2026.01.22 @ 15:47:17 Sessions 3 Manual Loads 0 Difficulty Rogue Special Mode None Game No. 1349 Rogue 1345 Adventurer 4 Explorer 0 Win Type 0 Total 293 Types 221/13/22/11/3/1/4/10/5/3 Lore% 98 Gallery% 96 Achievement% 88 Wizard Run 0 Options --------- Layout 2 ASCII 0 Keyboard 1 Movement Vi Keybinds 0 Fullscreen 0 Font 24/Terminus Map View 59x48 Zoom Use 0% Tactical HUD 1 Map Filters NONE Filters NONE Steam 1 RUN: 131e926a-e1f9-4200-826a-f196b0917064